Workbook

Sheet 1) Kumulativní rozpočet
B2: Kumulativní rozpočet projektu
C3: Editujte pouze zelená pole nebo použijte výběrová tlačítka | D3: Důležité informace jsou označeny v komentáři u daných buněk.
B5: Název žadatele:
B6: Název projektu:
B8: Specifický cíl:
B9: Opatření specifického cíle: | G9: více Opatření na projektu? | H9: =IF('KR zdroj'!B56=TRUE,"Vyberte všechna Opatření projektu na řádcích 52 a níže",IF(AND('KR zdroj'!B56=FALSE,'KR zdroj'!Q63>0),"Pozor na řádku 52 a níže vybráno více Opatření, které ale není v buňce G9 zaškrtnuto","")) -> 
B10: Aktivita (je-li relevantní): | G10: více Aktivit na projektu? | H10: =IF('KR zdroj'!B57=TRUE,"Vyberte všechny Aktivity projektu na řádcích 65 a níže",IF(AND('KR zdroj'!B57=FALSE,'KR zdroj'!Q69>0),"Pozor na řádku 65 a níže vybráno více Aktivit, které ale nejsou v buňce G10 zaškrtnuté","")) -> 
B11: Podaktivita (je-li relevantní) | G11: více Podaktivit na projektu? | H11: =IF('KR zdroj'!B58=TRUE,"Vyberte všechny Podopatření projektu na řádcích 72 a níže",IF(AND('KR zdroj'!B58=FALSE,'KR zdroj'!Q74>0),"Pozor na řádku 72 a níže vybráno více Podaktivit, které ale nejsou v buňce G11 zaškrtnuté","")) -> 
B12: DPH uznatelnost:
B14: Souhrnný rozpočet
D15: Náklady bez DPH | E15: DPH [%] | F15: Náklady s DPH | G15: Nezpůsobilá část z celkových nákladů stanovená žadatelem (bez DPH) | H15: Nezpůsobilá část celkem | I15: Způsobilé náklady po zohlednění limitů způsobilých nákladů a způsobilosti DPH | J15: INTERNÍ: Pozor na správný výpočet CZPRV při přepisu názvů položek realizace
B16: Realizace | C16: Stavební náklady | D16: 0 | E16: 21 | F16: =D16*(1+(E16/100)) -> 0 | G16: 0 | H16: =CHOOSE('KR zdroj'!$P$26,G16*(1+('1) Kumulativní rozpočet'!E16/100)),D16*(E16/100)+G16,G16*(1+('1) Kumulativní rozpočet'!E16/100)),"vyber uznatelnost DPH") -> vyber uznatelnost DPH | I16: =IFERROR(F16-H16,"zadej výdaje/uznatelnost DPH") -> zadej výdaje/uznatelnost DPH
C17: Rezerva | D17: 0 | E17: 21 | F17: =D17*(1+(E17/100)) -> 0 | G17: 0 | H17: =CHOOSE('KR zdroj'!$P$26,G17*(1+('1) Kumulativní rozpočet'!E17/100)),D17*(E17/100)+G17,G17*(1+('1) Kumulativní rozpočet'!E17/100)),"vyber uznatelnost DPH") -> vyber uznatelnost DPH | I17: 0
C18: Nákup pozemku | D18: 0 | E18: 21 | F18: 0 | G18: 0 | H18: =CHOOSE('KR zdroj'!$P$26,G18*(1+('1) Kumulativní rozpočet'!E18/100)),D18*(E18/100)+G18,G18*(1+('1) Kumulativní rozpočet'!E18/100)),"vyber uznatelnost DPH") -> vyber uznatelnost DPH | I18: =IFERROR(F18-H18,"zadej výdaje/uznatelnost DPH") -> zadej výdaje/uznatelnost DPH
C19: vývoj/koncepce vzdělávacích programů pro poskytování klimatického vzdělávání | D19: 0 | E19: 21 | F19: 0 | G19: 0 | H19: =CHOOSE('KR zdroj'!$P$26,G19*(1+('1) Kumulativní rozpočet'!E19/100)),D19*(E19/100)+G19,G19*(1+('1) Kumulativní rozpočet'!E19/100)),"vyber uznatelnost DPH") -> vyber uznatelnost DPH | I19: zadej výdaje/uznatelnost DPH
C20: Celkem | D20: =SUM(D16:D19) -> 0 | F20: =SUM(F16:F19) -> 0 | H20: =SUM(H16:H19) -> 0 | I20: =IFERROR(I16+I17+I18+I19,"zadej výdaje/uznatelnost DPH") -> zadej výdaje/uznatelnost DPH | J20: = Celk. zp. náklady (realizace)
I21: =IFERROR(I16+I18,"zadej výdaje/uznatelnost DPH") -> zadej výdaje/uznatelnost DPH | J21: = Celk. zp. přímé realizační výdaje
D22: =IF(AND(B27>100000000,OR('KR zdroj'!P26=3,'KR zdroj'!P26=4)),"Upozornění - při celkových nákladech projektu ve výši 5 mil. EUR a více je DPH NIN! viz Pržap kap. B.1.6.3","") ->  | I22: =IFERROR(I21*'KR zdroj'!P30,0) -> 0 | J22: moje ctrl - vymazat
I23: =CHOOSE('KR zdroj'!$P$26,$I$24,$I$24*(1+($E$16/100)),$I$24,0) -> 0
B24: Paušální sazba | C24: Nepřímé náklady dle Pržap - Příloha č. 3, část III. | D24: Maximální výše způsobilých nepřímých nákladů se dopočítává dle výše celkových způsobilých přímých realizačních výdajů stanovených formou jednotkových nákladů a uznatelnosti DPH | I24: =IF(OR(J24<=15000000,J24="zadej výdaje/uznatelnost DPH"),J24,15000000) -> zadej výdaje/uznatelnost DPH | J24: =IFERROR('KR zdroj'!P32*'1) Kumulativní rozpočet'!I21,"zadej výdaje/uznatelnost DPH") -> zadej výdaje/uznatelnost DPH
D26: =CHOOSE('KR zdroj'!P2,0,0,0,0,0,'1) Kumulativní rozpočet'!D25,'1) Kumulativní rozpočet'!D25,'1) Kumulativní rozpočet'!D25,'1) Kumulativní rozpočet'!D25,'1) Kumulativní rozpočet'!D25,'1) Kumulativní rozpočet'!D25,'1) Kumulativní rozpočet'!D25,'1) Kumulativní rozpočet'!D25,'1) Kumulativní rozpočet'!D25,0,'1) Kumulativní rozpočet'!D25,'1) Kumulativní rozpočet'!D25,0,0,'1) Kumulativní rozpočet'!D25) -> 0 | F26: =(D26)*(1+(E16/100)) -> 0 | H26: =CHOOSE([1]zdroj!P2,0,0,0,0,0,'1) Kumulativní rozpočet'!H25,'1) Kumulativní rozpočet'!H25,'1) Kumulativní rozpočet'!H25,'1) Kumulativní rozpočet'!H25,'1) Kumulativní rozpočet'!H25,'1) Kumulativní rozpočet'!H25,'1) Kumulativní rozpočet'!H25,'1) Kumulativní rozpočet'!H25,'1) Kumulativní rozpočet'!H25,0,'1) Kumulativní rozpočet'!H25,'1) Kumulativní rozpočet'!H25,0,0,'1) Kumulativní rozpočet'!H25) -> 0 | I26: =CHOOSE([1]zdroj!P2,0,0,0,0,0,'1) Kumulativní rozpočet'!I25,'1) Kumulativní rozpočet'!I25,'1) Kumulativní rozpočet'!I25,'1) Kumulativní rozpočet'!I25,'1) Kumulativní rozpočet'!I25,'1) Kumulativní rozpočet'!I25,'1) Kumulativní rozpočet'!I25,'1) Kumulativní rozpočet'!I25,'1) Kumulativní rozpočet'!I25,0,'1) Kumulativní rozpočet'!I25,'1) Kumulativní rozpočet'!I25,0,0,'1) Kumulativní rozpočet'!I25) -> 0
B27: =IF(D27="zadej výdaje/DPH",0,D27) -> 0 | C27: Celkové náklady projektu | D27: =IFERROR(IF(F20+I23+F26=0,"zadej výdaje/DPH",F20+I23+F26),"zadej výdaje/DPH") -> zadej výdaje/DPH
C28: Celkové způsobilé výdaje projektu | D28: =IFERROR(IF(ROUND(I20+I24+I26,0)=0,"zadej výdaje/DPH",ROUND(I20+I24+I26,0)),"zadej výdaje/DPH") -> zadej výdaje/DPH | G28: Komentář ke stanoveným nezpůsobilým nákladům:
C29: Celkové nezpůsobilé výdaje projektu | D29: =IFERROR(ROUND(D27-D28,0),"zadej výdaje/DPH") -> zadej výdaje/DPH | G29: zde vepište případný komentář k nezpůsobilým výdajům
C34: Zpracoval | D34: ……………………………….. | E34: =TODAY() -> 2023-07-21
C42: Opatření - vyberte všechna další Opatření na projektu
B43: hlavní Opatření dle KR | C43: =CHOOSE([1]zdroj!C10,[1]zdroj!D10,[1]zdroj!D11,[1]zdroj!D12,[1]zdroj!D13,[1]zdroj!D14,[1]zdroj!D15,[1]zdroj!D16,[1]zdroj!D17,[1]zdroj!D18,[1]zdroj!D19,[1]zdroj!D20) -> Vyber nejprve Specifický cíl a poté hlavní Opatření projektu
C44: vyber Opatření #2 | F44: =IF(C43=C44,"Duplicita Opatření","") -> 
C45: vyber Opatření #3 | F45: =IF(OR(C43=C45,C44=C45),"Duplicita Opatření","") -> 
C46: vyber Opatření #4 | F46: =IF(OR(C46=C45,C46=C44,C46=C43),"Duplicita Opatření","") -> 
C47: vyber Opatření #5 | F47: =IF(OR(C45=C47,C47=C46,C47=C44,C47=C43),"Duplicita Opatření","") -> 
C48: vyber Opatření #6 | F48: =IF(OR(C48=C47,C48=C46,C48=C45,C48=C44,C48=C43),"Duplicita Opatření","") -> 
C49: vyber Opatření #7 | F49: =IF(OR(C49=C48,C49=C47,C49=C46,C49=C45,C49=C44,C49=C43),"Duplicita Opatření","") -> 
C50: vyber Opatření #8 | F50: =IF(OR($C$48=C50,$C$49=C50,$C$47=C50,$C$46=C50,$C$45=C50,$C$44=C50,$C$43=C50),"Duplicita Opatření","") -> 
C51: vyber Opatření #9 | F51: =IF(OR($C$50=C51,$C$48=C51,$C$49=C51,$C$47=C51,$C$46=C51,$C$45=C51,$C$44=C51,$C$43=C51),"Duplicita Opatření","") -> 
C52: vyber Opatření #10 | F52: =IF(OR($C$51=C52,$C$50=C52,$C$48=C52,$C$49=C52,$C$47=C52,$C$46=C52,$C$45=C52,$C$44=C52,$C$43=C52),"Duplicita Opatření","") -> 
C53: vyber Opatření #11 | F53: =IF(OR(C52=C53,$C$51=C53,$C$50=C53,$C$48=C53,$C$49=C53,$C$47=C53,$C$46=C53,$C$45=C53,$C$44=C53,$C$43=C53),"Duplicita Opatření","") -> 
C55: Aktivity - vyberte všechny další Aktivity na projektu
B56: hlavní Aktivita z KR | C56: =CHOOSE([1]zdroj!B24,[1]zdroj!D23,[1]zdroj!D24,[1]zdroj!D25,[1]zdroj!D26,[1]zdroj!D27) -> irelevantní
C57: vyber Aktivitu #2 | G57: =IF(C57=C56,"Duplicita Aktivit","") -> 
C58: vyber Aktivitu #3 | G58: =IF(OR(C58=$C$57,C58=$C$56),"Duplicita Aktivit","") -> 
C59: vyber Aktivitu #4 | G59: =IF(OR(C59=$C$58,C59=$C$57,C59=$C$56),"Duplicita Aktivit","") -> 
C60: vyber Aktivitu #5 | G60: =IF(OR(C60=$C$59,C60=$C$58,C60=$C$57,C60=$C$56),"Duplicita Aktivit","") -> 
C62: Podaktivity - vyberte všechny další Podaktivity na projektu
B63: hlavní Podaktivita z KR | C63: =CHOOSE([1]zdroj!L47,[1]zdroj!M47,[1]zdroj!M48,[1]zdroj!M49,[1]zdroj!M50) -> irelevantní
C64: vyber Podaktivitu #2 | H64: =IF(C64=C63,"Duplicita Podaktivit","") -> 
C65: vyber Podaktivitu #3 | H65: =IF(OR(C65=C64,C65=C63),"Duplicita Podaktivit","") -> 
C66: vyber Podaktivitu #4 | H66: =IF(OR(C66=C65,C66=C64,C66=C63),"Duplicita Podaktivit","") -> 

Sheet KR zdroj (hidden)
A1: =OR(C10=2,C10=3,C10=5,C10=6,C10=11) -> FALSE | C1: 1 | D1: Vyber Specifický cíl | L1: =CHOOSE($C$1,1,0,0,0,0,0,0) -> 1 | M1: Vyber nejprve Specifický cíl a poté hlavní Opatření projektu | N1: 1_1 | R1: paušál PP
A2: =AND(A1=TRUE,C1=6) -> FALSE | C2: 2 | D2: 1.1 Podpora energetické účinnosti a snižování emisí skleníkových plynů | L2: 1 | M2: 1.1.1 Snížení energetické náročnosti veřejných budov a veřejné infrastruktury | N2: 2_1 | O2: =IF(OR(AND(P2>5,P2<15),P2=16,P2=17,P2=20),1,0) -> 0 | P2: 1 | Q2: mimo Veřejnou podporu | R2: 1
D3: 1.2 Podpora energie z obnovitelných zdrojů v souladu se směrnicí (EU) 2018/2001, včetně kritérií udržitelnosti stanovených v uvedené směrnici | L3: 2 | M3: 1.1.2 Snížení energetické náročnosti/zvýšení účinnosti technologických procesů | N3: 2_2 | Q3: de minimis 360/2012 | R3: 2
D4: 1.3 Podpora přizpůsobení se změně klimatu, prevence rizika katastrof a odolnosti vůči nim s přihlédnutím k ekosystémovým přístupům | L4: 3 | M4: 1.1.3 Zlepšení kvality vnitřního prostředí veřejných budov | N4: 2_3 | Q4: de minimis 1407/2013 | R4: 3
D5: 1.4 Podpora přístupu k vodě a udržitelného hospodaření s vodou | L5: 4 | M5: 1.1.4 Zvýšení adaptability veřejných budov na změnu klimatu | N5: 2_4 | Q5: de minimis 1408/2013 | R5: 4
D6: 1.5 Podpora přechodu na oběhové hospodářství účinně využívající zdroje | L6: 5 | M6: 1.1.5 Výstavba nových veřejných budov, které budou splňovat parametry pro pasivní nebo plusové budovy | N6: 2_5 | Q6: de minimis 717/2014 | R6: 5
D7: 1.6 Posilování ochrany a zachování přírody, biologické rozmanitosti a zelené infrastruktury, a to i v městských oblastech, a snižování všech forem znečištění | L7: 6 | M7: 1.2.1 Výstavba a rekonstrukce obnovitelných zdrojů energie pro veřejné budovy | N7: 3_1 | Q7: GBER článek 14
L8: 7 | M8: 1.2.2 Výstavba a rekonstrukce obnovitelných zdrojů energie pro zajištění dodávek systémové energie ve veřejném sektoru | N8: 3_2 | Q8: GBER ŽP článek 36
L9: 8 | M9: 1.2.3 Výměna nevyhovujících spalovacích zdrojů na tuhá paliva a pořizování domovních předávacích stanic | N9: 3_3 | Q9: GBER ŽP článek 38
C10: 4 | D10: =CHOOSE($C$1,$M$1,M2,M7,M10,M20,M25,M36) -> Vyber nejprve Specifický cíl a poté hlavní Opatření projektu | L10: 9 | M10: 1.3.1 Podpora přírodě blízkých opatření v krajině a sídlech | N10: 4_1 | Q10: GBER ŽP článek 40
D11: =CHOOSE($C$1,$M$1,M3,M8,M11,M21,M26,M37) -> Vyber nejprve Specifický cíl a poté hlavní Opatření projektu | L11: 10 | M11: 1.3.2 Zpracování studií a plánů (studie systémů sídelní zeleně, územní studie krajiny, plán územního systému ekologické stability) | N11: 4_2 | Q11: GBER ŽP článek 41
D12: =CHOOSE($C$1,$M$1,M4,M9,M12,M22,M27,M38) -> Vyber nejprve Specifický cíl a poté hlavní Opatření projektu | L12: 11 | M12: 1.3.3 Realizace protipovodňových opatření | N12: 4_3 | Q12: GBER ŽP článek 45
D13: =CHOOSE($C$1,$M$1,M5,"irelevantní",M13,M23,M28,M39) -> Vyber nejprve Specifický cíl a poté hlavní Opatření projektu | L13: 12 | M13: 1.3.4 Realizace opatření ke zpomalení odtoku, pro vsak, retenci a akumulaci srážkové vody vč. jejího dalšího využití; realizace zelených střech; opatření na využití šedé vody; opatření pro řízenou dotaci podzemních vod | N13: 4_4 | Q13: GBER ŽP článek 46
D14: =CHOOSE($C$1,$M$1,M6,"irelevantní",M14,M24,M29,M40) -> Vyber nejprve Specifický cíl a poté hlavní Opatření projektu | L14: 13 | M14: 1.3.5 Podpora preventivních opatření proti povodním a suchu, zejména budování, rozšíření, zkvalitnění a obnova monitorovacích, předpovědních, hlásných, výstražných a varovných systémů; zpracování digitálních povodňových plánů, zpracování analýzy odtokových poměrů | N14: 4_5 | Q14: GBER ŽP článek 47
D15: =CHOOSE($C$1,$M$1,"irelevantní","irelevantní",M15,"irelevantní",M30,M41) -> Vyber nejprve Specifický cíl a poté hlavní Opatření projektu | I15: kurz euro Kč | L15: 14 | M15: 1.3.6 Podpora povodňové operativy, zvyšování povědomí obyvatel o povodňovém riziku, zvyšování resilience citlivých objektů před povodněmi | N15: 4_6 | Q15: GBER ŽP článek 49
D16: =CHOOSE($C$1,$M$1,"irelevantní","irelevantní",M16,"irelevantní",M31,M42) -> Vyber nejprve Specifický cíl a poté hlavní Opatření projektu | I16: 24.739 | L16: 15 | M16: 1.3.7 Monitoring a rebilance dlouhodobě využitelných zdrojů podzemních vod pro obce v krystaliniku Českého masivu | N16: 4_7 | Q16: GBER článek 53, kulturní infrastruktura | R16: 15
D17: =CHOOSE($C$1,$M$1,"irelevantní","irelevantní",M17,"irelevantní",M32,M43) -> Vyber nejprve Specifický cíl a poté hlavní Opatření projektu | I17: https://ec.europa.eu/info/funding-tenders/procedures-guidelines-tenders/information-contractors-and-beneficiaries/exchange-rate-inforeuro_cs | L17: 16 | M17: 1.3.8 Obnova stability svahů, stabilizace a sanace extrémních svahových nestabilit vzniklých v důsledku přírodních jevů | N17: 4_8 | Q17: GBER článek 55, sportovní infrastruktura
D18: =CHOOSE($C$1,$M$1,"irelevantní","irelevantní",M18,"irelevantní",M33,"irelevantní") -> Vyber nejprve Specifický cíl a poté hlavní Opatření projektu | L18: 17 | M18: 1.3.9 Investice do modernizace vzdělávacích environmentálních center zaměřených na změnu klimatu | N18: 4_9 | Q18: GBER článek 56, lokální infrastruktura
D19: =CHOOSE($C$1,$M$1,"irelevantní","irelevantní",M19,"irelevantní",M34,"irelevantní") -> Vyber nejprve Specifický cíl a poté hlavní Opatření projektu | L19: 18 | M19: 1.3.10 Prevence a řízení antropogenních rizik | N19: 4_10 | Q19: SGEI Rozhodnutí Komise | R19: 18
D20: =CHOOSE($C$1,$M$1,"irelevantní","irelevantní","irelevantní","irelevantní",M35,"irelevantní") -> Vyber nejprve Specifický cíl a poté hlavní Opatření projektu | L20: 19 | M20: 1.4.1 Výstavba čistíren odpadních vod; dobudování a výstavba kanalizaci | N20: 5_1 | Q20: SGEI Nařízení Evropského parlamentu a Rady (ES) č. 1370/2007 – Doprava | R20: 19
L21: 20 | M21: 1.4.2 Intenzifikace čistíren odpadních vod za účelem zvýšeného odstraňování specifického znečištění | N21: 5_2 | Q21: Pokyny AGRI, Prevence škod způsobených zvláště chráněnými živočišnými druhy
L22: 21 | M22: 1.4.3 Opatření omezující vypouštění odpadních vod z odlehčení na kanalizaci (akumulační nádrže, retenční nádrže, chemické předčištění apod.) | N22: 5_3
B23: =IF(AND(C1=4,C10=1),9,IF(AND(C1=7,C10=1),35,IF(AND(C1=7,C10=2),36,0))) -> 0 | C23: 2 | D23: =IF($B$23=9,D31,IF($B$23=35,D36,IF($B$23=36,D41,"irelevantní"))) -> irelevantní | L23: 22 | M23: 1.4.4 Výstavba a modernizace vodovodních přivaděčů a vodovodních řadů; výstavba úpraven vody; výstavba, intenzifikace nebo revitalizace stávajících vodních zdrojů | N23: 5_4
B24: 1 | D24: =IF($B$23=9,D32,IF($B$23=35,D37,IF($B$23=36,D42,"irelevantní"))) -> irelevantní | L24: 23 | M24: 1.4.5 Intenzifikace úpraven pitné vody | N24: 5_5
D25: =IF($B$23=9,D33,IF($B$23=35,D38,"irelevantní")) -> irelevantní | L25: 24 | M25: 1.5.1 Kompostéry pro předcházení vzniku komunálních odpadů | N25: 6_1
D26: =IF($B$23=9,D34,IF($B$23=35,D39,"irelevantní")) -> irelevantní | L26: 25 | M26: 1.5.2 RE-USE centra pro opětovné použití výrobků včetně aktivit pro opravy a prodlužování životnosti výrobků, podpora prevence vzniku odpadu | N26: 6_2 | P26: 4 | Q26: DPH uznatelné = Nejsem plátce DPH
D27: =IF($B$23=9,D35,IF($B$23=35,D40,"irelevantní")) -> irelevantní | L27: 26 | M27: 1.5.3 Budování infrastruktury potravinových bank | N27: 6_3 | Q27: DPH neuznatelné = Jsem plátce DPH a mám nárok na odpočet DPH ve vztahu k aktivitám projektu / CN > 5mil eur dle kap. B.1.6.3 PrŽaP
L28: 27 | M28: 1.5.4 Podpora prevence vzniku odpadů z jednorázového nádobí nebo jednorázových obalů | N28: 6_4 | Q28: DPH uznatelné = Jsem plátce DPH a nemám zákonný nárok na odpočet DPH ve vztahu k aktivitám projektu
L29: 28 | M29: 1.5.5 Výstavba a modernizace sběrných dvorů, doplnění a zefektivnění systému odděleného sběru/svozu zejména komunálních odpadů včetně podpory door-to-door systémů a zavádění systémů PAYT ("Pay-as-You-Throw") | N29: 6_5 | Q29: Vyber
D30: vyber Aktivitu | L30: 29 | M30: 1.5.6 Podpora třídících a dotřiďovacích systémů (včetně úpravy) pro separaci ostatních odpadů | N30: 6_6 | P30: =IF('1) Kumulativní rozpočet'!I21>10000000,"0,035",IF('1) Kumulativní rozpočet'!I21>3000000,",05",",07")) -> 0,035 | Q30: %PP | R30: 7% pod 3 mil
C31: 9_1 | D31: 1.3.1.1 Tvorba nových a obnova stávajících přírodě blízkých vodních prvků v krajině včetně sídel | L31: 30 | M31: 1.5.7 Budování zařízení pro úpravu a zpracování čistírenských odpadních kalů z čistíren odpadních vod včetně úpravy vyčištěných odpadních vod pro jejich opětovné využívání | N31: 6_7 | R31: 5% 3 až 10 mil
C32: 9_2 | D32: 1.3.1.2 Tvorba nových a obnova stávajících vegetačních prvků a struktur, včetně opatření proti vodní a větrné erozi | L32: 31 | M32: 1.5.8 Výstavba a modernizace zařízení pro materiálové využití odpadů | N32: 6_8 | P32: =IF(OR(C1=4,C1=7),P33,P30) -> 0,035 | R32: 3,5% nad 10 mil
D33: 1.3.1.3 Úprava lesních porostů směrem k přirozené struktuře a druhové skladbě za účelem posílení jejich stability | L33: 32 | M33: 1.5.9 Výstavba a modernizace zařízení pro energetické využití odpadů, včetně bioplynových stanic pro zpracování odpadů | N33: 6_9 | P33: =IF('1) Kumulativní rozpočet'!I21>10000000,"0,05",",07") -> 0,05 | R33: 7% do 10 mil
D34: 1.3.1.4 Zakládání a obnova veřejné sídelní zeleně | L34: 33 | M34: 1.5.10 Budování a modernizace zařízení pro chemickou recyklaci odpadů | N34: 6_10 | P34: SC 1.3, 1.6 | R34: 5% nad 10 mil
D35: 1.3.1.5 Odstranění či eliminace negativních funkcí odvodňovacích zařízení v krajině | L35: 34 | M35: 1.5.11 Budování a modernizace zařízení pro sběr a nakládání s nebezpečnými odpady | N35: 6_11 | P35: 1 | Q35: irelevantní
C36: 35_1 | D36: 1.6.1.1 Péče o přírodní stanoviště a druhy, opatření na podporu ohrožených druhů | L36: 35 | M36: 1.6.1 Podpora přírodních stanovišť a druhů a péče o nejcennější části přírody a krajiny | N36: 7_1 | Q36: Malý podnik
D37: 1.6.1.2 Péče o chráněná území (přírodní dědictví) | L37: 36 | M37: 1.6.2 Zprůchodnění migračních překážek pro živočichy | N37: 7_2 | Q37: Střední podnik
D38: 1.6.1.3 Omezení šíření invazních nepůvodních a expanzivních druhů | L38: 37 | M38: 1.6.3 Modernizace a rozvoj záchranných stanic a záchranných center CITES pro ohrožené druhy živočichů | N38: 7_3 | Q38: Velký podnik
D39: 1.6.1.4 Monitoring ekosystémů, stanovišť a druhů, sběr podkladů, zpracování koncepčních dokumentů pro péči o chráněná území, zajištění územní ochrany chráněných území (přírodního dědictví | L39: 38 | M39: 1.6.4 Náhrada nebo rekonstrukce stacionárních zdrojů znečišťování ovzduší včetně realizace dodatečných technologií a změny technologických postupů | N39: 7_4
D40: 1.6.1.5 Návštěvnická infrastruktura sloužící k usměrnění návštěvníků v chráněných územích a zvýšení povědomí o problematice ochrany přírody | L40: 39 | M40: 1.6.5 Pořízení a modernizace systémů pro posuzování a vyhodnocení úrovně znečištění ovzduší a souvisejících meteorologických aspektů a pořízení a modernizace systémů pro archivaci a zpracování údajů o znečišťování ovzduší | N40: 7_5 | P40: =CHOOSE(P26,'1) Kumulativní rozpočet'!F25-'1) Kumulativní rozpočet'!G25*(1+('1) Kumulativní rozpočet'!E25/100)),'1) Kumulativní rozpočet'!D25-'1) Kumulativní rozpočet'!G25,'1) Kumulativní rozpočet'!F25-'1) Kumulativní rozpočet'!G25*(1+('1) Kumulativní rozpočet'!E25/100))) ->  | Q40: CZN PP VP | R40: =P40 -> 
D41: 1.6.2.1 Zprůchodnění migračních překážek pro vodní živočichy a opatření k omezování jejich úmrtnosti | L41: 40 | M41: 1.6.6 Pořízení a náhrada monitorovacích systémů pro kontinuální měření emisí znečišťujících látek včetně pořízení on-line systémů k jejich prezentaci | N41: 7_6 | P41: =IF((P32*('1) Kumulativní rozpočet'!I18))>15000000,15000000,(P32*('1) Kumulativní rozpočet'!I16+'1) Kumulativní rozpočet'!I18))) ->  | Q41: % CZN max | R41: =P41 ->  | S41: =R40-R41 ->  | T41: =S41*1.21 -> 
D42: 1.6.2.2 Zprůchodnění migračních překážek pro suchozemské živočichy a opatření k omezování jejich úmrtnosti | L42: 41 | M42: 1.6.7 Průzkum rozsahu znečištění horninového prostředí a rizik s ním spojených, včetně návrhu efektivního řešení | N42: 7_7
L43: 42 | M43: 1.6.8 Odstranění rizik kontaminace ohrožující lidské zdraví, vodní zdroje nebo ekosystémy a rekultivace starých skládek | N43: 7_8 | P43: 10000 | Q43: 21 | R43: =P43*(1+(Q43/100)) -> 12100 | S43: =P43*(1+(Q43/100))+IF(P40>P41,P40-P41,0) -> 
D45: vyber Podaktivitu | S45: =P43*(Q43/100)+P43+IF(P40>P41,P40-P41,0) -> 
D46: 1.3.1.1.1 Vytváření a obnova tůní (mokřadů)
D47: 1.3.1.1.2 Malé vodní nádrže (MVN) | L47: 1 | M47: =IF(AND($B$23=9,$B$24=1),D46,IF(AND($B$23=9,$B$24=2),D50,IF(AND($B$23=35,$B$24=1),D52,"irelevantní"))) -> irelevantní
D48: 1.3.1.1.3 Revitalizace a renaturace vodních toků a niv | M48: =IF(AND($B$23=9,$B$24=1),D47,IF(AND($B$23=9,$B$24=2),D51,IF(AND($B$23=35,$B$24=1),D53,"irelevantní"))) -> irelevantní
D49: 1.3.1.1.4 Nákup pozemků pro podporu renaturačních procesů a revitalizací vodních toků | M49: =IF(AND($B$23=9,$B$24=1),D48,"irelevantní") -> irelevantní
D50: 1.3.1.2.1 Vegetační krajinné prvky (včetně skladebných prvků ÚSES) | M50: =IF(AND($B$23=9,$B$24=1),D49,"irelevantní") -> irelevantní
D51: 1.3.1.2.2 Zavádění půdoochranných technologií
D52: 1.6.1.1.1 Péče o přírodní stanoviště a druhy, opatření na podporu ohrožených druhů
D53: 1.6.1.1.2 Předcházení, minimalizace a náprava škod způsobených vybranými zvláště chráněnými druhy živočichů
A56: =IF(B56=TRUE,1,0) -> 0 | B56: FALSE | C56: více opatření
A57: =IF(B57=TRUE,1,0) -> 0 | B57: FALSE | C57: více aktivit
A58: 0 | B58: FALSE | C58: více podaktivit | D58: 2 | H58: 6 | K58: 9
D59: vyber Opatření #2 | E59: vyber Opatření #3 | F59: vyber Opatření #4 | G59: vyber Opatření #5 | H59: vyber Opatření #6 | I59: vyber Opatření #7 | J59: vyber Opatření #8 | K59: vyber Opatření #9 | L59: vyber Opatření #10 | M59: vyber Opatření #11 | P59: =[1]KR!C52 -> vyber Opatření #2 | Q59: =IF(P59="vyber Opatření #2",0,1) -> 0
D60: =CHOOSE($C$1,"",$M$2,$M$7,$M$10,$M$20,$M$25,$M$36) ->  | P60: =[1]KR!C53 -> vyber Opatření #3 | Q60: =IF(P60="vyber Opatření #3",0,1) -> 0
D61: =CHOOSE($C$1,"",$M$3,$M$8,$M$11,$M$21,$M$26,$M$37) ->  | P61: =[1]KR!C54 -> vyber Opatření #4 | Q61: =IF(P61="vyber Opatření #4",0,1) -> 0
D62: =CHOOSE($C$1,"",$M$4,$M$9,$M$12,$M$22,$M$27,$M$38) ->  | P62: =[1]KR!C55 -> vyber Opatření #5 | Q62: =IF(P62="vyber Opatření #5",0,1) -> 0
D63: =CHOOSE($C$1,"","","",$M$13,$M$23,$M$28,$M$39) ->  | Q63: =SUM(Q59:Q62) -> 0
D64: =CHOOSE($C$1,"","","",$M$14,$M$24,$M$29,$M$40) -> 
D65: =CHOOSE($C$1,"","","",$M$15,"",$M$30,$M$41) ->  | P65: =[1]KR!C65 -> vyber Aktivitu #2 | Q65: =IF(P65="vyber Aktivitu #2",0,1) -> 0
D66: =CHOOSE($C$1,"","","",$M$16,"",$M$31,$M$42) ->  | P66: =[1]KR!C66 -> vyber Aktivitu #3 | Q66: =IF(P66="vyber Aktivitu #3",0,1) -> 0
D67: =CHOOSE($C$1,"","","",$M$17,"",$M$32,$M$43) ->  | P67: =[1]KR!C67 -> vyber Aktivitu #4 | Q67: =IF(P67="vyber Aktivitu #4",0,1) -> 0
D68: =CHOOSE($C$1,"","","",$M$18,"",$M$33,"") ->  | P68: =[1]KR!C68 -> vyber Aktivitu #5 | Q68: =IF(P68="vyber Aktivitu #5",0,1) -> 0
D69: =CHOOSE($C$1,"","","",$M$19,"",$M$34,"") ->  | Q69: =SUM(Q65:Q68) -> 0
D70: =CHOOSE($C$1,"","","","","",$M$35,"") -> 
P71: =[1]KR!C72 -> vyber Podaktivitu #2 | Q71: =IF(P71="vyber Podaktivitu #2",0,1) -> 0
D72: vyber Aktivitu #2 | E72: vyber Aktivitu #3 | F72: vyber Aktivitu #4 | G72: vyber Aktivitu #5 | P72: =[1]KR!C73 -> vyber Podaktivitu #3 | Q72: =IF(P72="vyber Podaktivitu #3",0,1) -> 0
D73: =IF($B$23=9,$D$31,IF($B$23=35,$D$36,IF($B$23=36,$D$41,""))) ->  | E73: =IF($B$23=9,$D$31,IF($B$23=35,$D$36,IF($B$23=36,$D$41,""))) ->  | F73: =IF($B$23=9,$D$31,IF($B$23=35,$D$36,IF($B$23=36,$D$41,""))) ->  | G73: =IF($B$23=9,$D$31,IF($B$23=35,$D$36,IF($B$23=36,$D$41,""))) ->  | P73: =[1]KR!C74 -> vyber Podaktivitu #4 | Q73: =IF(P73="vyber Podaktivitu #4",0,1) -> 0
D74: =IF($B$23=9,$D$32,IF($B$23=35,$D$37,IF($B$23=36,$D$42,""))) ->  | E74: =IF($B$23=9,$D$32,IF($B$23=35,$D$37,IF($B$23=36,$D$42,""))) ->  | F74: =IF($B$23=9,$D$32,IF($B$23=35,$D$37,IF($B$23=36,$D$42,""))) ->  | G74: =IF($B$23=9,$D$32,IF($B$23=35,$D$37,IF($B$23=36,$D$42,""))) ->  | Q74: =SUM(Q71:Q73) -> 0
D75: =IF($B$23=9,$D$33,IF($B$23=35,$D$38,"")) ->  | E75: =IF($B$23=9,$D$33,IF($B$23=35,$D$38,"")) ->  | F75: =IF($B$23=9,$D$33,IF($B$23=35,$D$38,"")) ->  | G75: =IF($B$23=9,$D$33,IF($B$23=35,$D$38,"")) -> 
D76: =IF($B$23=9,$D$34,IF($B$23=35,$D$39,"")) ->  | E76: =IF($B$23=9,$D$34,IF($B$23=35,$D$39,"")) ->  | F76: =IF($B$23=9,$D$34,IF($B$23=35,$D$39,"")) ->  | G76: =IF($B$23=9,$D$34,IF($B$23=35,$D$39,"")) -> 
D77: =IF($B$23=9,$D$35,IF($B$23=35,$D$40,"")) ->  | E77: =IF($B$23=9,$D$35,IF($B$23=35,$D$40,"")) ->  | F77: =IF($B$23=9,$D$35,IF($B$23=35,$D$40,"")) ->  | G77: =IF($B$23=9,$D$35,IF($B$23=35,$D$40,"")) -> 
D79: vyber Podaktivitu #2 | E79: vyber Podaktivitu #3 | F79: vyber Podaktivitu #4
D80: =IF(AND($B$23=9,$B$24=1),$D$46,IF(AND($B$23=9,$B$24=2),$D$50,IF(AND($B$23=35,$B$24=1),$D$52,"irelevantní"))) -> irelevantní | E80: =IF(AND($B$23=9,$B$24=1),$D$46,IF(AND($B$23=9,$B$24=2),$D$50,IF(AND($B$23=35,$B$24=1),$D$52,"irelevantní"))) -> irelevantní | F80: =IF(AND($B$23=9,$B$24=1),$D$46,IF(AND($B$23=9,$B$24=2),$D$50,IF(AND($B$23=35,$B$24=1),$D$52,"irelevantní"))) -> irelevantní
D81: =IF(AND($B$23=9,$B$24=1),$D$47,IF(AND($B$23=9,$B$24=2),$D$51,IF(AND($B$23=35,$B$24=1),$D$53,"irelevantní"))) -> irelevantní | E81: =IF(AND($B$23=9,$B$24=1),$D$47,IF(AND($B$23=9,$B$24=2),$D$51,IF(AND($B$23=35,$B$24=1),$D$53,"irelevantní"))) -> irelevantní | F81: =IF(AND($B$23=9,$B$24=1),$D$47,IF(AND($B$23=9,$B$24=2),$D$51,IF(AND($B$23=35,$B$24=1),$D$53,"irelevantní"))) -> irelevantní
D82: =IF(AND($B$23=9,$B$24=1),$D$48,"") ->  | E82: =IF(AND($B$23=9,$B$24=1),$D$48,"") ->  | F82: =IF(AND($B$23=9,$B$24=1),$D$48,"") -> 
D83: =IF(AND($B$23=9,$B$24=1),$D$49,"") ->  | E83: =IF(AND($B$23=9,$B$24=1),$D$49,"") ->  | F83: =IF(AND($B$23=9,$B$24=1),$D$49,"") -> 

Sheet KR výstup (hidden)
C3: Název žadatele: | D3: =[1]KR!C5 -> 0
C4: Název projektu: | D4: =[1]KR!C6 -> 0
C5: Specifický cíl: | D5: =CHOOSE([1]zdroj!C1,[1]zdroj!D1,[1]zdroj!D2,[1]zdroj!D3,[1]zdroj!D4,[1]zdroj!D5,[1]zdroj!D6,[1]zdroj!D7) -> Vyber Specifický cíl
C6: Veřejná podpora: | D6: =CHOOSE([1]zdroj!P2,[1]zdroj!Q2,[1]zdroj!Q3,[1]zdroj!Q4,[1]zdroj!Q5,[1]zdroj!Q6,[1]zdroj!Q7,[1]zdroj!Q8,[1]zdroj!Q9,[1]zdroj!Q10,[1]zdroj!Q11,[1]zdroj!Q12,[1]zdroj!Q13,[1]zdroj!Q14,[1]zdroj!Q15,[1]zdroj!Q16,[1]zdroj!Q17,[1]zdroj!Q18,[1]zdroj!Q19,[1]zdroj!Q20,[1]zdroj!Q21) -> mimo Veřejnou podporu
C7: DPH uznatelnost: | D7: =CHOOSE([1]zdroj!P26,[1]zdroj!Q26,[1]zdroj!Q27,[1]zdroj!Q28,[1]zdroj!Q29) -> Vyber
C8: Velikost podniku: | D8: =CHOOSE([1]zdroj!P35,[1]zdroj!Q35,[1]zdroj!Q36,[1]zdroj!Q37,[1]zdroj!Q38) -> irelevantní
C9: Celkové náklady projektu | D9: =[1]KR!$D$29 -> zadej výdaje/DPH
C10: Celkové způsobilé výdaje projeku | D10: =[1]KR!D30 -> zadej výdaje/DPH
C11: Celkové nezpůsobilé výdaje projetku | D11: =[1]KR!D31 -> zadej výdaje/DPH
C12: Opatření specifického cíle (hlavní) | D12: =[1]KR!C51 -> Vyber nejprve Specifický cíl a poté hlavní Opatření projektu
C13: Opatření #2 | D13: =[1]KR!C52 -> vyber Opatření #2
C14: Opatření #3 | D14: =[1]KR!C53 -> vyber Opatření #3
C15: Opatření #4 | D15: =[1]KR!C54 -> vyber Opatření #4
C16: Opatření #5 | D16: =[1]KR!C55 -> vyber Opatření #5
C17: Opatření #6 | D17: =[1]KR!C56 -> vyber Opatření #6
C18: Opatření #7 | D18: =[1]KR!C57 -> vyber Opatření #7
C19: Opatření #8 | D19: =[1]KR!C58 -> vyber Opatření #8
C20: Opatření #9 | D20: =[1]KR!C59 -> vyber Opatření #9
C21: Opatření #10 | D21: =[1]KR!C60 -> vyber Opatření #10
C22: Opatření #11 | D22: =[1]KR!C61 -> vyber Opatření #11
C23: Aktivita (hlavní) | D23: =[1]KR!C64 -> irelevantní
C24: Aktivita #2 | D24: =[1]KR!C65 -> vyber Aktivitu #2
C25: Aktivita #3 | D25: =[1]KR!C66 -> vyber Aktivitu #3
C26: Aktivita #4 | D26: =[1]KR!C67 -> vyber Aktivitu #4
C27: Aktivita #5 | D27: =[1]KR!C68 -> vyber Aktivitu #5
C28: Podaktivita (hlavní) | D28: =[1]KR!C71 -> irelevantní
C29: Podaktivita #2 | D29: =[1]KR!C72 -> vyber Podaktivitu #2
C30: Podaktivita #3 | D30: =[1]KR!C73 -> vyber Podaktivitu #3
C31: Podaktivita #4 | D31: =[1]KR!C74 -> vyber Podaktivitu #4
C32: ISKP Přímé inv. a neinv. náklady do limitu PS bez VP či VP s výpočtem paušálu (řádky 1.1.1.1 + 1.1.1.2) | D32: =[1]KR!F41 -> zadej výdaje/DPH
C33: ISKP Přímé inv. a neinv. náklady nad limit PS bez VP či VP s výpočtem paušálu nebo Přímé inv. a neinv. náklady s VP bez výpočtu paušálu (řádky 1.1.3 a 1.1.4) | D33: =[1]KR!F42 -> zadej výdaje/DPH
C34: ISKP Nezpůsobilé inv. a neinv. náklady bez ohledu na VP (řádky 1.2.5 a 1.2.6) | D34: =[1]KR!F43 -> zadej výdaje/DPH
C35: Paušální sazba (bez VP či VP s výpočtem paušálu) | D35: =[1]KR!I25 -> 0
C36: "Projektová příprava" dle skutečných nákladů s limitem dle PS pro VP | D36: =[1]KR!I28 -> 0

Sheet 2) Stanovení jednotkové podpory
A1: Identifikace projektu | C1: Poznámka k vyplnění: Tabulka je optimalizována pro MS Excel 2010 a vyšší. Použití starší verze či jiného programu může způsobit problémy. Editujte pouze zelené buňky a zaškrtávací políčka, vybírejte z rozbalovacích menu. Řiďte se informacemi označenými červeným trojúhelníkem v pravém horním rohu buněk.
B3: Název žadatele | C3: ='1) Kumulativní rozpočet'!C5:F5 -> 0
B4: Název projektu | C4: ='1) Kumulativní rozpočet'!C6:F6 -> 0
B5: Číslo výzvy | C5: 11
B6: Hodnota koeficientu k2 | C6: 1.1
B7: Památkově chráněná budova | C7: NE
B8: Budova sloužící pro výchovu a vzdělávání dětí a mladistvých | C8: NE
B9: DPH je v rámci projektu způsobilým výdajem | C9: =IF('KR zdroj'!$P$26=4,"Nezvoleno na 1. listu",IF('KR zdroj'!$P$26=2,"NE","ANO")) -> Nezvoleno na 1. listu
B10: Stanovte příslušnou procentní výši DPH pro realizaci | C10: ='1) Kumulativní rozpočet'!E16/100 -> 0.21
A11: Obecné parametry - stanovení míry kvality renovace
E12: hodnota | F12: jednotka
B13: Spotřeba primární energie z neobnovitelných zdrojů - stav před realizací navržených opatření | F13: kWh/rok
B14: Spotřeba primární energie z neobnovitelných zdrojů - stav po realizaci navržených opatření | F14: kWh/rok
B15: Spotřeba primární energie z neobnovitelných zdrojů dle PENB pro referenční budovu - stav po realizaci navržených opatření | F15: kWh/rok
B16: Průměrný součinitel prostupu tepla obálky budovy - stav po realizaci navržených opatření | F16: W.m-2.K-1
B17: Požadovaný součinitel prostupu tepla obálky referenční budovy - stav po realizaci navržených opatření | F17: W.m-2.K-1
B18: Nejvyšší podíl hodnoty součinitele prostupu tepla měněných stavebních prvků vyjma oken, na něž se vztahuje podpora, vůči příslušné požadované hodnotě součinitele prostupu tepla pro danou konstrukci | F18: %
B19: Nejvyšší podíl hodnoty součinitele prostupu tepla měněných oken, na něž se vztahuje podpora, vůči příslušné požadované hodnotě součinitele prostupu tepla pro danou konstrukci | F19: %
B20: Nejvyšší dosažená denní teplota vzduchu v referenční místnosti v letním období po realizaci navržených opatření | F20: °C
B21: Nejvyšší přípustná denní teplota vzduchu v referenční místnosti v letním období po realizaci navržených opatření | F21: °C
B22: Nejvyšší dosažená koncentrace CO2 v pobytových místnostech po realizaci navržených opatření | F22: ppm
B24: Výsledná míra kvality renovace | D24: =IF(OR(AND($A$77=TRUE,$A$26=FALSE),AND($A$96=TRUE,$A$26=FALSE)),"A2",IF('SJP Pomocné hodnoty'!$J$2=1,IF(OR(E13="",E14="",E15="",E16="",E17="",E18="",E19="",E20="",E21=""),"Nejsou vyplněny všechny nezbytné obecné parametry!",IF(AND((E13-E14)/E13>=0.4,E14/E15<=0.7,E16/E17<=0.8,E18<=100,E19<=60,E20<=E21),"A2",IF(OR((E13-E14)/E13<0.3,E14/E15>0.85,E16/E17>0.95,E18>100,E19>60,E20>E21),"Technicky nedořešeno!","A1"))),IF('SJP Pomocné hodnoty'!$J$2=2,IF(OR(E13="",E14="",E15="",E16="",E17="",E18="",E19="",E20="",E21="",E22=""),"Nejsou vyplněny všechny nezbytné obecné parametry!",IF(AND((E13-E14)/E13>=0.4,E14/E15<=0.7,E16/E17<=0.8,E18<=100,E19<=60,E20<=E21,E22<=1500),"A2",IF(OR((E13-E14)/E13<0.3,E14/E15>0.85,E16/E17>0.95,E18>100,E19>60,E20>E21,E22>1500),"Technicky nedořešeno!","A1"))),IF('SJP Pomocné hodnoty'!$J$2=3,IF(OR(E13="",E14="",E18="",E19="",E20="",E21=""),"Nejsou vyplněny všechny nezbytné obecné parametry!",IF(AND((E13-E14)/E13>=0.4,E18<=100,E19<=60,E20<=E21),"A2",IF(OR((E13-E14)/E13<0.3,E18>100,E19>60,E20>E21),"Technicky nedořešeno!","A1"))),IF('SJP Pomocné hodnoty'!$J$2=4,IF(OR(E13="",E14="",E18="",E19="",E20="",E21="",E22=""),"Nejsou vyplněny všechny nezbytné obecné parametry!",IF(AND((E13-E14)/E13>=0.4,E18<=100,E19<=60,E20<=E21,E22<=1500),"A2",IF(OR((E13-E14)/E13<0.3,E18>100,E19>60,E20>E21,E22>1500),"Technicky nedořešeno!","A1"))),IF('SJP Pomocné hodnoty'!$J$2>4,IF(OR($E$13="",$E$14=""),"Nejsou vyplněny všechny nezbytné obecné parametry!",IF(AND(($E$13-$E$14)/$E$13>=0.4),"A2",IF(OR(($E$13-$E$14)/$E$13<0.3),"Technicky nedořešeno!","A1"))))))))) -> Nejsou vyplněny všechny nezbytné obecné parametry!
A26: FALSE | B26: 1.1.1 Snížení energetické náročnosti veřejných budov a veřejné infrastruktury
E27: hodnota | F27: jednotka | G27: jednotkový náklad bez DPH | H27: k1 | I27: k2 | J27: k3 | K27: jednotková dotace za opatření bez DPH | L27: celková dotace za opatření bez DPH | M27: Způsobilé přímérealizační výdaje
B28: Plocha zateplovaných obvodových stěn | D28: FALSE | F28: m2 | G28: ='SJP Pomocné hodnoty'!F17 -> 4200 | H28: =IF($D$28=TRUE,'SJP Pomocné hodnoty'!G17+'SJP Pomocné hodnoty'!H17,'SJP Pomocné hodnoty'!G17) -> 1 | I28: ='SJP Pomocné hodnoty'!R17 -> 1.1 | J28: =IF($D$24="A1",'SJP Pomocné hodnoty'!S17,IF($D$24="A2",'SJP Pomocné hodnoty'!T17,0)) -> 0 | K28: =G28*H28*I28*J28 -> 0 | L28: =E28*K28 -> 0 | M28: =E28*G28*H28*I28 -> 0
B29: Plocha měněných otvorových výplní (oken a dveří) | C29: mimo LOP | D29: FALSE | F29: m2 | G29: ='SJP Pomocné hodnoty'!F18 -> 8900 | H29: =IF($D$28=TRUE,'SJP Pomocné hodnoty'!G18+'SJP Pomocné hodnoty'!H18,'SJP Pomocné hodnoty'!G18) -> 1 | I29: ='SJP Pomocné hodnoty'!R18 -> 1.1 | J29: =IF($D$24="A1",'SJP Pomocné hodnoty'!S18,IF($D$24="A2",'SJP Pomocné hodnoty'!T18,0)) -> 0 | K29: =G29*H29*I29*J29 -> 0 | L29: =E29*K29 -> 0 | M29: =E29*G29*H29*I29 -> 0
C30: LOP | D30: FALSE | F30: m2 | G30: ='SJP Pomocné hodnoty'!F19 -> 8900 | H30: =IF($D$28=TRUE,'SJP Pomocné hodnoty'!G19+'SJP Pomocné hodnoty'!H19,'SJP Pomocné hodnoty'!G19) -> 1.3 | I30: ='SJP Pomocné hodnoty'!R19 -> 1.1 | J30: =IF($D$24="A1",'SJP Pomocné hodnoty'!S19,IF($D$24="A2",'SJP Pomocné hodnoty'!T19,0)) -> 0 | K30: 0 | L30: 0 | M30: 0
B31: Plocha zateplovaných plochých či šikmých střech | C31: nová skladba včetně paro a hydroizolace | D31: FALSE | F31: m2 | G31: ='SJP Pomocné hodnoty'!F20 -> 3200 | H31: =IF($D$28=TRUE,'SJP Pomocné hodnoty'!G20+'SJP Pomocné hodnoty'!H20,'SJP Pomocné hodnoty'!G20) -> 1 | I31: ='SJP Pomocné hodnoty'!R20 -> 1.1 | J31: =IF($D$24="A1",'SJP Pomocné hodnoty'!S20,IF($D$24="A2",'SJP Pomocné hodnoty'!T20,0)) -> 0 | K31: 0 | L31: 0 | M31: 0
C32: pouze tepelná vrstva bez paro a hydroizolace | D32: FALSE | F32: m2 | G32: ='SJP Pomocné hodnoty'!F21 -> 3200 | H32: =IF($D$28=TRUE,'SJP Pomocné hodnoty'!G21+'SJP Pomocné hodnoty'!H21,'SJP Pomocné hodnoty'!G21) -> 0.2 | I32: ='SJP Pomocné hodnoty'!R21 -> 1.1 | J32: =IF($D$24="A1",'SJP Pomocné hodnoty'!S21,IF($D$24="A2",'SJP Pomocné hodnoty'!T21,0)) -> 0 | K32: 0 | L32: 0 | M32: 0
B33: Plocha zateplovaných podlah na zemině | D33: FALSE | F33: m2 | G33: ='SJP Pomocné hodnoty'!F22 -> 4000 | H33: =IF($D$28=TRUE,'SJP Pomocné hodnoty'!G22+'SJP Pomocné hodnoty'!H22,'SJP Pomocné hodnoty'!G22) -> 1 | I33: ='SJP Pomocné hodnoty'!R22 -> 1.1 | J33: =IF($D$24="A1",'SJP Pomocné hodnoty'!S22,IF($D$24="A2",'SJP Pomocné hodnoty'!T22,0)) -> 0 | K33: 0 | L33: 0 | M33: 0
B34: Plocha zateplovaných konstrukcí k nevytápěným prostorům | D34: FALSE | F34: m2 | G34: ='SJP Pomocné hodnoty'!F23 -> 1200 | H34: =IF($D$28=TRUE,'SJP Pomocné hodnoty'!G23+'SJP Pomocné hodnoty'!H23,'SJP Pomocné hodnoty'!G23) -> 1 | I34: ='SJP Pomocné hodnoty'!R23 -> 1.1 | J34: =IF($D$24="A1",'SJP Pomocné hodnoty'!S23,IF($D$24="A2",'SJP Pomocné hodnoty'!T23,0)) -> 0 | K34: 0 | L34: 0 | M34: 0
B35: Celkový výkon nově instalovaných systémů nuceného větrání - výukové prostory vzdělávacích budov | C35: výkon na jednotku do 1500 m3 | F35: počet žáků | G35: ='SJP Pomocné hodnoty'!F24 -> 9800 | H35: =IF($D$28=TRUE,'SJP Pomocné hodnoty'!G24+'SJP Pomocné hodnoty'!H24,'SJP Pomocné hodnoty'!G24) -> 0.6 | I35: ='SJP Pomocné hodnoty'!R24 -> 1.1 | J35: =IF($D$24="A1",'SJP Pomocné hodnoty'!S24,IF($D$24="A2",'SJP Pomocné hodnoty'!T24,0)) -> 0 | K35: 0 | L35: 0 | M35: 0
C36: výkon na jednotku nad 1500 m3 | F36: počet žáků | G36: ='SJP Pomocné hodnoty'!F25 -> 9800 | H36: =IF($D$28=TRUE,'SJP Pomocné hodnoty'!G25+'SJP Pomocné hodnoty'!H25,'SJP Pomocné hodnoty'!G25) -> 1 | I36: ='SJP Pomocné hodnoty'!R25 -> 1.1 | J36: =IF($D$24="A1",'SJP Pomocné hodnoty'!S25,IF($D$24="A2",'SJP Pomocné hodnoty'!T25,0)) -> 0 | K36: 0 | L36: 0 | M36: 0
B37: Celkový výkon nově instalovaných systémů nuceného větrání s rekuperací - ostatní | C37: výkon na jednotku do 1500 m3 | F37: m3/hod | G37: ='SJP Pomocné hodnoty'!F26 -> 390 | H37: =IF($D$28=TRUE,'SJP Pomocné hodnoty'!G26+'SJP Pomocné hodnoty'!H26,'SJP Pomocné hodnoty'!G26) -> 0.6 | I37: ='SJP Pomocné hodnoty'!R26 -> 1.1 | J37: =IF($D$24="A1",'SJP Pomocné hodnoty'!S26,IF($D$24="A2",'SJP Pomocné hodnoty'!T26,0)) -> 0 | K37: 0 | L37: 0 | M37: 0
C38: výkon na jednotku nad 1500 m3 - regulace průtoku ON/OFF | F38: m3/hod | G38: ='SJP Pomocné hodnoty'!F27 -> 390 | H38: =IF($D$28=TRUE,'SJP Pomocné hodnoty'!G27+'SJP Pomocné hodnoty'!H27,'SJP Pomocné hodnoty'!G27) -> 0.5 | I38: ='SJP Pomocné hodnoty'!R27 -> 1.1 | J38: =IF($D$24="A1",'SJP Pomocné hodnoty'!S27,IF($D$24="A2",'SJP Pomocné hodnoty'!T27,0)) -> 0 | K38: 0 | L38: 0 | M38: 0
C39: výkon na jednotku nad 1500 m3 - regulace průtoku dle času, % výkonu jednotky a ostatní neuvedené | F39: m3/hod | G39: ='SJP Pomocné hodnoty'!F28 -> 390 | H39: =IF($D$28=TRUE,'SJP Pomocné hodnoty'!G28+'SJP Pomocné hodnoty'!H28,'SJP Pomocné hodnoty'!G28) -> 0.7 | I39: ='SJP Pomocné hodnoty'!R28 -> 1.1 | J39: =IF($D$24="A1",'SJP Pomocné hodnoty'!S28,IF($D$24="A2",'SJP Pomocné hodnoty'!T28,0)) -> 0 | K39: 0 | L39: 0 | M39: 0
C40: výkon na jednotku nad 1500 m3 - plynulá regulace, např. CO2 | F40: m3/hod | G40: ='SJP Pomocné hodnoty'!F29 -> 390 | H40: =IF($D$28=TRUE,'SJP Pomocné hodnoty'!G29+'SJP Pomocné hodnoty'!H29,'SJP Pomocné hodnoty'!G29) -> 1 | I40: ='SJP Pomocné hodnoty'!R29 -> 1.1 | J40: =IF($D$24="A1",'SJP Pomocné hodnoty'!S29,IF($D$24="A2",'SJP Pomocné hodnoty'!T29,0)) -> 0 | K40: 0 | L40: 0 | M40: 0
B41: Další opatření mající prokazatelně vliv na snížení spotřeby primární energie z neobnovitlrených zdrojů | F41: MWh/rok | G41: ='SJP Pomocné hodnoty'!F30 -> 36100 | H41: =IF($E$41>300,'SJP Pomocné hodnoty'!G34,IF($E$41>100,'SJP Pomocné hodnoty'!G33,IF($E$41>30,'SJP Pomocné hodnoty'!G32,IF($E$41>10,'SJP Pomocné hodnoty'!G31,'SJP Pomocné hodnoty'!G30)))) -> 1.1 | I41: ='SJP Pomocné hodnoty'!R30 -> 1.1 | J41: =IF($D$24="A1",'SJP Pomocné hodnoty'!S30,IF($D$24="A2",'SJP Pomocné hodnoty'!T30,0)) -> 0 | K41: 0 | L41: 0 | M41: 0
B43: Počet nově instalovaných dobíjecích stanic pro vozidla na elektropohon | F43: ks | G43: ='SJP Pomocné hodnoty'!F80 -> 45000 | H43: ='SJP Pomocné hodnoty'!G80 -> 1 | I43: ='SJP Pomocné hodnoty'!R80 -> 1.1 | J43: =IF($D$24="A1",'SJP Pomocné hodnoty'!S80,IF($D$24="A2",'SJP Pomocné hodnoty'!T80,0)) -> 0 | K43: 0 | L43: =E43*K43 -> 0 | M43: 0
B44: Počet realizovaných opatření k ochraně synantropních druhů | F44: ks | G44: ='SJP Pomocné hodnoty'!F81 -> 3000 | H44: ='SJP Pomocné hodnoty'!G81 -> 1 | I44: ='SJP Pomocné hodnoty'!R81 -> 1.1 | J44: =IF($D$24="A1",'SJP Pomocné hodnoty'!S81,IF($D$24="A2",'SJP Pomocné hodnoty'!T81,0)) -> 0 | K44: 0 | L44: =E44*K44 -> 0 | M44: 0
B46: Navýšení podpory při využití EPC/PD&B | D46: FALSE
D47: FALSE
B49: Celková dotace za opatření 1.1.1 | E49: =IF(A26<>TRUE,0,IF($C$9<>"ANO",SUM(L28:L44),SUM(L28:L44)*(1+$C$10))) -> 0
A50: FALSE | B50: 1.1.3 Zlepšení kvality vnitřního prostředí veřejných budov
E51: hodnota | F51: jednotka | G51: jednotkový náklad bez DPH | H51: k1 | I51: k2 | J51: k3 | K51: jednotková dotace za opatření bez DPH | L51: celková dotace za opatření bez DPH | M51: Způsobilé přímé realizační výdaje
B52: Plocha výplní otvorů stíněných nově instalovanými vnějšími stínícími prvky orientovanými s odklonem větším než 25°od severu | C52: ruční mechanické ovládání | F52: m2 | G52: ='SJP Pomocné hodnoty'!F97 -> 3700 | H52: ='SJP Pomocné hodnoty'!G97 -> 0.6 | I52: ='SJP Pomocné hodnoty'!R97 -> 1.1 | J52: =IF($D$24="A1",'SJP Pomocné hodnoty'!S97,IF($D$24="A2",'SJP Pomocné hodnoty'!T97,0)) -> 0 | K52: =G52*H52*I52*J52 -> 0 | L52: =E52*K52 -> 0 | M52: =E52*G52*H52*I52 -> 0
C53: ruční elektronické ovládání | F53: m2 | G53: ='SJP Pomocné hodnoty'!F98 -> 3700 | H53: ='SJP Pomocné hodnoty'!G98 -> 0.9 | I53: ='SJP Pomocné hodnoty'!R98 -> 1.1 | J53: =IF($D$24="A1",'SJP Pomocné hodnoty'!S98,IF($D$24="A2",'SJP Pomocné hodnoty'!T98,0)) -> 0 | K53: =G53*H53*I53*J53 -> 0 | L53: 0 | M53: 0
C54: automat. ovlád. na základě meteostanice s rozdělením orientace vůči svět. stranám | F54: m2 | G54: ='SJP Pomocné hodnoty'!F99 -> 3700 | H54: ='SJP Pomocné hodnoty'!G99 -> 1 | I54: ='SJP Pomocné hodnoty'!R99 -> 1.1 | J54: =IF($D$24="A1",'SJP Pomocné hodnoty'!S99,IF($D$24="A2",'SJP Pomocné hodnoty'!T99,0)) -> 0 | K54: 0 | L54: 0 | M54: 0
B55: Podlahová plocha místností v nichž je modernizováno osvětlení na LED (výměna zdroje či svítidla / renovace svítidel a rozvodů / dynamické a biodynamické ovládání) | C55: Chodby, komunikace, sklady a prostory s nižší int. osvětlení než 200 lux/m2 | D55: výměna zdrojů a svítidel za nová s LED technologií | F55: m2 | G55: ='SJP Pomocné hodnoty'!F100 -> 2000 | H55: ='SJP Pomocné hodnoty'!G100 -> 0.2 | I55: ='SJP Pomocné hodnoty'!R100 -> 1.1 | J55: =IF($D$24="A1",'SJP Pomocné hodnoty'!S100,IF($D$24="A2",'SJP Pomocné hodnoty'!T100,0)) -> 0 | K55: 0 | L55: 0 | M55: 0
D56: obnova sys. osvětlení za LED technol. včetně real. nových rozvodů a svítidel | F56: m2 | G56: ='SJP Pomocné hodnoty'!F101 -> 2000 | H56: ='SJP Pomocné hodnoty'!G101 -> 0.4 | I56: ='SJP Pomocné hodnoty'!R101 -> 1.1 | J56: =IF($D$24="A1",'SJP Pomocné hodnoty'!S101,IF($D$24="A2",'SJP Pomocné hodnoty'!T101,0)) -> 0 | K56: 0 | L56: 0 | M56: 0
D57: realizace dynamického či biodynamického osvětlení | F57: m2 | G57: ='SJP Pomocné hodnoty'!F102 -> 2000 | H57: ='SJP Pomocné hodnoty'!G102 -> 0.6 | I57: ='SJP Pomocné hodnoty'!R102 -> 1.1 | J57: =IF($D$24="A1",'SJP Pomocné hodnoty'!S102,IF($D$24="A2",'SJP Pomocné hodnoty'!T102,0)) -> 0 | K57: 0 | L57: 0 | M57: 0
C58: Ostatní prostory (s intenzitou osvětlení vyšší než 200 lux/m2) | D58: výměna zdrojů a svítidel za nová s LED technologií | F58: m2 | G58: ='SJP Pomocné hodnoty'!F103 -> 2000 | H58: ='SJP Pomocné hodnoty'!G103 -> 0.3 | I58: ='SJP Pomocné hodnoty'!R103 -> 1.1 | J58: =IF($D$24="A1",'SJP Pomocné hodnoty'!S103,IF($D$24="A2",'SJP Pomocné hodnoty'!T103,0)) -> 0 | K58: 0 | L58: 0 | M58: 0
D59: obnova sys. osvětlení za LED technol. včetně real. nových rozvodů a svítidel | F59: m2 | G59: ='SJP Pomocné hodnoty'!F104 -> 2000 | H59: ='SJP Pomocné hodnoty'!G104 -> 0.7 | I59: ='SJP Pomocné hodnoty'!R104 -> 1.1 | J59: =IF($D$24="A1",'SJP Pomocné hodnoty'!S104,IF($D$24="A2",'SJP Pomocné hodnoty'!T104,0)) -> 0 | K59: 0 | L59: 0 | M59: 0
D60: realizace dynamického či biodynamického osvětlení | F60: m2 | G60: ='SJP Pomocné hodnoty'!F105 -> 2000 | H60: ='SJP Pomocné hodnoty'!G105 -> 1 | I60: ='SJP Pomocné hodnoty'!R105 -> 1.1 | J60: =IF($D$24="A1",'SJP Pomocné hodnoty'!S105,IF($D$24="A2",'SJP Pomocné hodnoty'!T105,0)) -> 0 | K60: 0 | L60: 0 | M60: 0
B61: Podlahová plocha místností v nichž je řešena prostorová akustika (např. přednáškové sály, učebny, apod.) | F61: m2 | G61: ='SJP Pomocné hodnoty'!F106 -> 1000 | H61: ='SJP Pomocné hodnoty'!G106 -> 1 | I61: ='SJP Pomocné hodnoty'!R106 -> 1.1 | J61: =IF($D$24="A1",'SJP Pomocné hodnoty'!S106,IF($D$24="A2",'SJP Pomocné hodnoty'!T106,0)) -> 0 | K61: 0 | L61: 0 | M61: 0
B64: Celková dotace za opatření 1.1.3 | E64: =IF(A26<>TRUE,0,IF($C$9<>"ANO",SUM(L52:L61),SUM(L52:L61)*(1+$C$10))) -> 0
A65: FALSE | B65: 1.1.4 Zvýšení adaptability veřejných budov na změnu klimatu
E66: hodnota | F66: jednotka | G66: jednotkový náklad bez DPH | H66: k1 | I66: k2 | J66: k3 | K66: jednotková dotace za opatření bez DPH | L66: celková dotace za opatření bez DPH | M66: Způsobilé přímé realizační výdaje
B67: Kapacita akum. nádrže instalovaného syst. využití dešťové vody k závlaze - systém bez technolog. úpravy vody | F67: m3 | G67: ='SJP Pomocné hodnoty'!F87 -> 8000 | H67: ='SJP Pomocné hodnoty'!G87 -> 1 | I67: ='SJP Pomocné hodnoty'!R87 -> 1.1 | J67: =IF($D$24="A1",'SJP Pomocné hodnoty'!S87,IF($D$24="A2",'SJP Pomocné hodnoty'!T87,0)) -> 0 | K67: =G67*H67*I67*J67 -> 0 | L67: =E67*K67 -> 0 | M67: =E67*G67*H67*I67 -> 0
B68: Kapacita akum. nádrže instalovaného syst.využití dešťové vody k závlaze - technologie na odbourávání organických nečistot (biolog. filtrace) a hygienické zabezpečení na výstupu, určeno pro závlahu rozstřikem | F68: m3 | G68: ='SJP Pomocné hodnoty'!F88 -> 25000 | H68: ='SJP Pomocné hodnoty'!G88 -> 1 | I68: ='SJP Pomocné hodnoty'!R88 -> 1.1 | J68: =IF($D$24="A1",'SJP Pomocné hodnoty'!S88,IF($D$24="A2",'SJP Pomocné hodnoty'!T88,0)) -> 0 | K68: =G68*H68*I68*J68 -> 0 | L68: 0 | M68: 0
B69: Kapacita akumulační nádrže instalovaného systému využití dešťové vody ke splachování toalet | F69: m3 | G69: ='SJP Pomocné hodnoty'!F89 -> 40000 | H69: ='SJP Pomocné hodnoty'!G89 -> 1 | I69: ='SJP Pomocné hodnoty'!R89 -> 1.1 | J69: =IF($D$24="A1",'SJP Pomocné hodnoty'!S89,IF($D$24="A2",'SJP Pomocné hodnoty'!T89,0)) -> 0 | K69: 0 | L69: 0 | M69: 0
B70: Kapacita retenčího zařízení instalovaného systému vsakování a výparu dešťové vody ze zpevněných ploch budovy | F70: m3 | G70: ='SJP Pomocné hodnoty'!F90 -> 5000 | H70: ='SJP Pomocné hodnoty'!G90 -> 1 | I70: ='SJP Pomocné hodnoty'!R90 -> 1.1 | J70: =IF($D$24="A1",'SJP Pomocné hodnoty'!S90,IF($D$24="A2",'SJP Pomocné hodnoty'!T90,0)) -> 0 | K70: 0 | L70: 0 | M70: 0
B71: Přečištění a využití lehké šedé vody z budovy (mimo ČOV) | C71: nebo | D71: kapacita zařízení pro úpravu vody | F71: m3 šedé vody/den | G71: ='SJP Pomocné hodnoty'!F91 -> 150000 | H71: ='SJP Pomocné hodnoty'!G91 -> 1 | I71: ='SJP Pomocné hodnoty'!R91 -> 1.1 | J71: =IF($D$24="A1",'SJP Pomocné hodnoty'!S91,IF($D$24="A2",'SJP Pomocné hodnoty'!T91,0)) -> 0 | K71: 0 | L71: 0 | M71: 0
D72: úspora pitné vody | F72: m3/rok | G72: ='SJP Pomocné hodnoty'!F92 -> 2000 | H72: ='SJP Pomocné hodnoty'!G92 -> 1 | I72: ='SJP Pomocné hodnoty'!R92 -> 1.1 | J72: =IF($D$24="A1",'SJP Pomocné hodnoty'!S92,IF($D$24="A2",'SJP Pomocné hodnoty'!T92,0)) -> 0 | K72: 0 | L72: 0 | M72: 0
B73: Vegetační střechy | F73: m2
B76: Celková dotace za opatření 1.1.4 | E76: =IF(A26<>TRUE,0,IF($C$9<>"ANO",SUM(L67:L72),SUM(L67:L72)*(1+$C$10))) -> 0
A77: FALSE | B77: 1.2.1 Výstavba a rekonstrukce obnovitelných zdrojů energie pro veřejné budovy
E78: hodnota | F78: jednotka | G78: jednotkový náklad bez DPH | H78: k1 | I78: k2 | J78: k3 | K78: jednotková dotace za opatření bez DPH | L78: celková dotace za opatření bez DPH | M78: Způsobilé přímé realizační výdaje
B79: Celkový výkon nově instalovaných tepelných čerpadel vzduch-voda | F79: kW | G79: ='SJP Pomocné hodnoty'!F45 -> 34600 | H79: =IF($E$79>250,'SJP Pomocné hodnoty'!G45,IF($E$79>100,'SJP Pomocné hodnoty'!G44,IF($E$79>50,'SJP Pomocné hodnoty'!G43,'SJP Pomocné hodnoty'!G42))) -> 1.2 | I79: ='SJP Pomocné hodnoty'!R45 -> 1.1 | J79: =IF($D$24="A1",'SJP Pomocné hodnoty'!S42,IF($D$24="A2",'SJP Pomocné hodnoty'!T42,0)) -> 0 | K79: =G79*H79*I79*J79 -> 0 | L79: =E79*K79 -> 0 | M79: =E79*G79*H79*I79 -> 0
B80: Celkový výkon nově instalovaných tepelných čerpadel země-voda a voda/voda | F80: kW | G80: ='SJP Pomocné hodnoty'!F46 -> 52900 | H80: =IF($E$80>250,'SJP Pomocné hodnoty'!G49,IF($E$80>100,'SJP Pomocné hodnoty'!G48,IF($E$80>50,'SJP Pomocné hodnoty'!G47,'SJP Pomocné hodnoty'!G46))) -> 1.2 | I80: ='SJP Pomocné hodnoty'!R46 -> 1.1 | J80: =IF($D$24="A1",'SJP Pomocné hodnoty'!S46,IF($D$24="A2",'SJP Pomocné hodnoty'!T46,0)) -> 0 | K80: =G80*H80*I80*J80 -> 0 | L80: 0 | M80: 0
B81: Celkový výkon nově instalovaných plynových tepelných čerpadel | F81: kW | G81: ='SJP Pomocné hodnoty'!F50 -> 28500 | H81: =IF($E$81>250,'SJP Pomocné hodnoty'!G53,IF($E$81>100,'SJP Pomocné hodnoty'!G52,IF($E$81>50,'SJP Pomocné hodnoty'!G51,'SJP Pomocné hodnoty'!G50))) -> 1.2 | I81: ='SJP Pomocné hodnoty'!R50 -> 1.1 | J81: =IF($D$24="A1",'SJP Pomocné hodnoty'!S50,IF($D$24="A2",'SJP Pomocné hodnoty'!T50,0)) -> 0 | K81: 0 | L81: 0 | M81: 0
B82: Celkový výkon nově instalovaných zdrojů na biomasu | F82: kW | G82: ='SJP Pomocné hodnoty'!F54 -> 10800 | H82: =IF($E$82>500,'SJP Pomocné hodnoty'!G59,IF($E$82>250,'SJP Pomocné hodnoty'!G58,IF($E$82>100,'SJP Pomocné hodnoty'!G57,IF($E$82>50,'SJP Pomocné hodnoty'!G56,IF($E$82>25,'SJP Pomocné hodnoty'!G55,'SJP Pomocné hodnoty'!G54))))) -> 1.4 | I82: ='SJP Pomocné hodnoty'!R54 -> 1.1 | J82: =IF($D$24="A1",'SJP Pomocné hodnoty'!S54,IF($D$24="A2",'SJP Pomocné hodnoty'!T54,0)) -> 0 | K82: 0 | L82: 0 | M82: 0
B83: Celkový výkon nově instalovaných systémů využití odpadního tepla | F83: kW | G83: ='SJP Pomocné hodnoty'!F60 -> 31600 | H83: =IF($E$83>500,'SJP Pomocné hodnoty'!G65,IF($E$83>250,'SJP Pomocné hodnoty'!G64,IF($E$83>100,'SJP Pomocné hodnoty'!G63,IF($E$83>50,'SJP Pomocné hodnoty'!G62,IF($E$83>25,'SJP Pomocné hodnoty'!G61,'SJP Pomocné hodnoty'!G60))))) -> 1.4 | I83: ='SJP Pomocné hodnoty'!R60 -> 1.1 | J83: =IF($D$24="A1",'SJP Pomocné hodnoty'!S60,IF($D$24="A2",'SJP Pomocné hodnoty'!T60,0)) -> 0 | K83: 0 | L83: 0 | M83: 0
B84: Realizace nové otopné teplovodní soustavy | F84: kW (tep. ztráta) | G84: ='SJP Pomocné hodnoty'!F66 -> 11500 | H84: ='SJP Pomocné hodnoty'!G66 -> 1 | I84: ='SJP Pomocné hodnoty'!R66 -> 1.1 | J84: =IF($D$24="A1",'SJP Pomocné hodnoty'!S66,IF($D$24="A2",'SJP Pomocné hodnoty'!T66,0)) -> 0 | K84: 0 | L84: =E84*K84 -> 0 | M84: 0
B85: Celkový výkon nově instalovaných solárně-termických kolektorů | C85: systém s plochými kolektory | F85: kW | G85: ='SJP Pomocné hodnoty'!F67 -> 36600 | H85: ='SJP Pomocné hodnoty'!G67 -> 1 | I85: ='SJP Pomocné hodnoty'!R67 -> 1.1 | J85: =IF($D$24="A1",'SJP Pomocné hodnoty'!S67,IF($D$24="A2",'SJP Pomocné hodnoty'!T67,0)) -> 0 | K85: 0 | L85: 0 | M85: 0
C86: systém s vakuovými kolektory | F86: kW | G86: ='SJP Pomocné hodnoty'!F68 -> 36600 | H86: ='SJP Pomocné hodnoty'!G68 -> 1.7 | I86: ='SJP Pomocné hodnoty'!R68 -> 1.1 | J86: =IF($D$24="A1",'SJP Pomocné hodnoty'!S68,IF($D$24="A2",'SJP Pomocné hodnoty'!T68,0)) -> 0 | K86: 0 | L86: 0 | M86: 0
B87: Celkový výkon nově instalovaných jednotek pro kombinovanou výrobu elektřiny a tepla nebo chladu | F87: kWe | G87: ='SJP Pomocné hodnoty'!F70 -> 68100 | H87: =IF($E$87>100,'SJP Pomocné hodnoty'!G71,IF($E$87>30,'SJP Pomocné hodnoty'!G70,'SJP Pomocné hodnoty'!G69)) -> 1.2 | I87: ='SJP Pomocné hodnoty'!R70 -> 1.1 | J87: =IF($D$24="A1",'SJP Pomocné hodnoty'!S69,IF($D$24="A2",'SJP Pomocné hodnoty'!T69,0)) -> 0 | K87: 0 | L87: 0 | M87: 0
B88: Celkový špičkový výkon nově instalovaných fotovoltaických systémů | F88: KWp | G88: ='SJP Pomocné hodnoty'!F72 -> 35000 | H88: =IF($E$88>250,'SJP Pomocné hodnoty'!G75,IF($E$88>100,'SJP Pomocné hodnoty'!G74,IF($E$88>30,'SJP Pomocné hodnoty'!G73,'SJP Pomocné hodnoty'!G72))) -> 1 | I88: ='SJP Pomocné hodnoty'!R75 -> 1.1 | J88: =IF($D$24="A1",'SJP Pomocné hodnoty'!S72,IF($D$24="A2",'SJP Pomocné hodnoty'!T72,0)) -> 0 | K88: 0 | L88: 0 | M88: 0
B89: Celková kapacita nově instalovaných bateriových systémů pro akumulaci energie z FVE systému | F89: kWh | G89: ='SJP Pomocné hodnoty'!F76 -> 26000 | H89: =IF($E$88>100,'SJP Pomocné hodnoty'!G78,IF($E$88>30,'SJP Pomocné hodnoty'!G77,'SJP Pomocné hodnoty'!G76)) -> 1 | I89: ='SJP Pomocné hodnoty'!R76 -> 1.1 | J89: =IF($D$24="A1",'SJP Pomocné hodnoty'!S76,IF($D$24="A2",'SJP Pomocné hodnoty'!T76,0)) -> 0 | K89: 0 | L89: =E89*K89 -> 0 | M89: 0
B90: Technické propojení FVE s tepelným čerpadlem pro TV | D90: FALSE | F90: ks | G90: ='SJP Pomocné hodnoty'!F79 -> 60000 | H90: ='SJP Pomocné hodnoty'!G79 -> 1 | I90: ='SJP Pomocné hodnoty'!R79 -> 1.1 | J90: =IF($D$24="A1",'SJP Pomocné hodnoty'!S79,IF($D$24="A2",'SJP Pomocné hodnoty'!T79,0)) -> 0 | K90: =IF(D90<>TRUE,0,G90*H90*I90*J90) -> 0 | L90: =E90*K90 -> 0 | M90: 0
B92: Navýšení podpory při využití EPC/PD&B | D92: FALSE
D93: FALSE
B95: ="Celková dotace za opatření 1.2.1" -> Celková dotace za opatření 1.2.1 | E95: =IF(A77<>TRUE,0,IF($C$9<>"ANO",SUM(L79:L90),SUM(L79:L90)*(1+$C$10))) -> 0
A96: FALSE | B96: 1.2.2 Výstavba a rekonstrukce obnovitelných zdrojů energie pro zajištění dodávek systémové energie ve veřejném sektoru
E97: hodnota | F97: jednotka | G97: jednotkový náklad bez DPH | H97: k1 | I97: k2 | J97: k3 | K97: jednotková dotace za opatření bez DPH | L97: celková dotace za opatření bez DPH | M97: Způsobilé přímé realizační výdaje
B98: Celkový výkon nově instalovaných tepelných čerpadel vzduch-voda | F98: kW | G98: ='SJP Pomocné hodnoty'!F45 -> 34600 | H98: =IF($E$79>250,'SJP Pomocné hodnoty'!G45,IF($E$79>100,'SJP Pomocné hodnoty'!G44,IF($E$79>50,'SJP Pomocné hodnoty'!G43,'SJP Pomocné hodnoty'!G42))) -> 1.2 | I98: ='SJP Pomocné hodnoty'!R45 -> 1.1 | J98: 0.5 | K98: =G98*H98*I98*J98 -> 22836 | L98: =E98*K98 -> 0 | M98: =E98*G98*H98*I98 -> 0
B99: Celkový výkon nově instalovaných tepelných čerpadel země-voda a voda/voda | F99: kW | G99: ='SJP Pomocné hodnoty'!F46 -> 52900 | H99: =IF($E$80>250,'SJP Pomocné hodnoty'!G49,IF($E$80>100,'SJP Pomocné hodnoty'!G48,IF($E$80>50,'SJP Pomocné hodnoty'!G47,'SJP Pomocné hodnoty'!G46))) -> 1.2 | I99: ='SJP Pomocné hodnoty'!R46 -> 1.1 | J99: 0.5 | K99: =G99*H99*I99*J99 -> 34914 | L99: 0 | M99: 0
B100: Celkový výkon nově instalovaných plynových tepelných čerpadel | F100: kW | G100: ='SJP Pomocné hodnoty'!F50 -> 28500 | H100: =IF($E$81>250,'SJP Pomocné hodnoty'!G53,IF($E$81>100,'SJP Pomocné hodnoty'!G52,IF($E$81>50,'SJP Pomocné hodnoty'!G51,'SJP Pomocné hodnoty'!G50))) -> 1.2 | I100: ='SJP Pomocné hodnoty'!R50 -> 1.1 | J100: 0.5 | K100: 18810 | L100: 0 | M100: 0
B101: Celkový výkon nově instalovaných zdrojů na biomasu | F101: kW | G101: ='SJP Pomocné hodnoty'!F54 -> 10800 | H101: =IF($E$82>500,'SJP Pomocné hodnoty'!G59,IF($E$82>250,'SJP Pomocné hodnoty'!G58,IF($E$82>100,'SJP Pomocné hodnoty'!G57,IF($E$82>50,'SJP Pomocné hodnoty'!G56,IF($E$82>25,'SJP Pomocné hodnoty'!G55,'SJP Pomocné hodnoty'!G54))))) -> 1.4 | I101: ='SJP Pomocné hodnoty'!R54 -> 1.1 | J101: 0.5 | K101: 8316 | L101: 0 | M101: 0
B102: Celkový výkon nově instalovaných systémů využití odpadního tepla | F102: kW | G102: ='SJP Pomocné hodnoty'!F60 -> 31600 | H102: =IF($E$83>500,'SJP Pomocné hodnoty'!G65,IF($E$83>250,'SJP Pomocné hodnoty'!G64,IF($E$83>100,'SJP Pomocné hodnoty'!G63,IF($E$83>50,'SJP Pomocné hodnoty'!G62,IF($E$83>25,'SJP Pomocné hodnoty'!G61,'SJP Pomocné hodnoty'!G60))))) -> 1.4 | I102: ='SJP Pomocné hodnoty'!R60 -> 1.1 | J102: 0.5 | K102: 24332 | L102: 0 | M102: 0
B103: Realizace nové otopné teplovodní soustavy | F103: kW (tep. ztráta) | G103: ='SJP Pomocné hodnoty'!F66 -> 11500 | H103: ='SJP Pomocné hodnoty'!G66 -> 1 | I103: ='SJP Pomocné hodnoty'!R66 -> 1.1 | J103: 0.5 | K103: 6325 | L103: =E103*K103 -> 0 | M103: 0
B104: Celkový výkon nově instalovaných solárně-termických kolektorů | C104: systém s plochými kolektory | F104: kW | G104: ='SJP Pomocné hodnoty'!F67 -> 36600 | H104: ='SJP Pomocné hodnoty'!G67 -> 1 | I104: ='SJP Pomocné hodnoty'!R67 -> 1.1 | J104: 0.5 | K104: 20130 | L104: =E104*K104 -> 0 | M104: 0
C105: systém s vakuovými kolektory | F105: kW | G105: ='SJP Pomocné hodnoty'!F68 -> 36600 | H105: ='SJP Pomocné hodnoty'!G68 -> 1.7 | I105: ='SJP Pomocné hodnoty'!R68 -> 1.1 | J105: 0.5 | K105: 34221 | L105: 0 | M105: 0
B106: Celkový výkon nově instalovaných jednotek pro kombinovanou výrobu elektřiny a tepla nebo chladu | F106: kWe | G106: ='SJP Pomocné hodnoty'!F70 -> 68100 | H106: =IF($E$87>100,'SJP Pomocné hodnoty'!G71,IF($E$87>30,'SJP Pomocné hodnoty'!G70,'SJP Pomocné hodnoty'!G69)) -> 1.2 | I106: ='SJP Pomocné hodnoty'!R70 -> 1.1 | J106: 0.5 | K106: 44946 | L106: 0 | M106: 0
B107: Celkový špičkový výkon nově instalovaných fotovoltaických systémů | F107: KWp | G107: ='SJP Pomocné hodnoty'!F72 -> 35000 | H107: =IF($E$107>250,'SJP Pomocné hodnoty'!G75,IF($E$107>100,'SJP Pomocné hodnoty'!G74,IF($E$107>30,'SJP Pomocné hodnoty'!G73,'SJP Pomocné hodnoty'!G72))) -> 1 | I107: ='SJP Pomocné hodnoty'!R75 -> 1.1 | J107: 0.5 | K107: 19250 | L107: 0 | M107: 0
B108: Celková kapacita nově instalovaných bateriových systémů pro akumulaci energie z FVE systému | F108: kWh | G108: ='SJP Pomocné hodnoty'!F76 -> 26000 | H108: =IF($E$88>100,'SJP Pomocné hodnoty'!G78,IF($E$88>30,'SJP Pomocné hodnoty'!G77,'SJP Pomocné hodnoty'!G76)) -> 1 | I108: ='SJP Pomocné hodnoty'!R76 -> 1.1 | J108: 0.5 | K108: 14300 | L108: =E108*K108 -> 0 | M108: 0
B109: Technické propojení FVE s tepelným čerpadlem pro TV | D109: FALSE | F109: ks | G109: ='SJP Pomocné hodnoty'!F79 -> 60000 | H109: ='SJP Pomocné hodnoty'!G79 -> 1 | I109: ='SJP Pomocné hodnoty'!R79 -> 1.1 | J109: 0.5 | K109: =IF(D109<>TRUE,0,G109*H109*I109*J109) -> 0 | L109: =E109*K109 -> 0 | M109: 0
B111: Navýšení podpory při využití EPC/PD&B | D111: FALSE
D112: FALSE
B114: ="Celková dotace za opatření 1.2.2" -> Celková dotace za opatření 1.2.2 | E114: =IF(A96<>TRUE,0,IF($C$9<>"ANO",SUM(L98:L109),SUM(L98:L109)*(1+$C$10))) -> 0
A117: Celkové způsobilé přímé realizační výdaje („CZPRV“) | D117: =IF($C$9<>"ANO",IF(A26<>TRUE,0,SUM(M28:M44))+IF(A50<>TRUE,0,SUM(M52:M61))+IF(A65<>TRUE,0,SUM(M67:M72))+IF(A77<>TRUE,0,SUM(M79:M90))+IF(A96<>TRUE,0,SUM(M98:M109)),(IF(A26<>TRUE,0,SUM(M28:M44))+IF(A50<>TRUE,0,SUM(M52:M61))+IF(A65<>TRUE,0,SUM(M67:M72))+IF(A77<>TRUE,0,SUM(M79:M90))+IF(A96<>TRUE,0,SUM(M98:M109)))*(1+$C$10)) -> 0
A119: Celková výše podpory na realizaci | D119: =IF(OR(D46=TRUE,D47=TRUE,),E49*'SJP Pomocné hodnoty'!U17,E49)+IF(OR(D92=TRUE,D93=TRUE),E95*'SJP Pomocné hodnoty'!U17,E95)+IF(OR(D111=TRUE,D112=TRUE),E114*'SJP Pomocné hodnoty'!U17,E114)+E76+E64 -> 0
F128: Invented by: Polak & Vrbický
F129: Created by: Urban

Sheet SJP Pomocné hodnoty (hidden)
A1: A | G1: Číselník pro obecné parametry
A2: Úspora primární energie z neobnovitelných zdrojů | C2: 0.3 | D2: 0.4 | G2: 1 | H2: Nepam | J2: =IF('2) Stanovení jednotkové podpory'!$C$7="NE",IF('2) Stanovení jednotkové podpory'!$C$8="NE",IF(AND('2) Stanovení jednotkové podpory'!D46=FALSE,'2) Stanovení jednotkové podpory'!D92=FALSE,'2) Stanovení jednotkové podpory'!D112=FALSE),1,3),IF(AND('2) Stanovení jednotkové podpory'!D46=FALSE,'2) Stanovení jednotkové podpory'!D92=FALSE,'2) Stanovení jednotkové podpory'!D112=FALSE),2,4)),IF('2) Stanovení jednotkové podpory'!$C$8="NE",IF(AND('2) Stanovení jednotkové podpory'!D46=FALSE,VD92=FALSE,'2) Stanovení jednotkové podpory'!D112=FALSE),5,7),IF(AND('2) Stanovení jednotkové podpory'!D46=FALSE,'2) Stanovení jednotkové podpory'!D92=FALSE,'2) Stanovení jednotkové podpory'!D112=FALSE),6,8))) -> 1
A3: Dosažená hodnota primární energie z neobnovitelných zdrojů dle PENB pro stav po realizaci navržených opatření | C3: 0.85 | D3: 0.7 | G3: 2 | H3: Nepam škola
A4: Průměrný součinitel prostupu tepla obálky budovy | C4: 0.95 | D4: 0.8 | G4: 3 | H4: Nepam EPC
A5: Součinitel prostupu tepla pro měněné stavební prvky vyjma oken, na něž se vztahuje podpora | G5: 4 | H5: Nepam škola EPC
A6: Součinitel prostupu tepla oken, na něž se vztahuje podpora | C6: 0.15 | G6: 5 | H6: Pam
A7: Nejvyšší denní teplota vzduchu v místnosti v letním období | C7: 0.21 | G7: 6 | H7: Pam škola
A8: Koncept větrání | G8: 7 | H8: Pam EPC
C9: ANO | G9: 8 | H9: Pam škola EPC
C10: NE
A11: =IF('2) Stanovení jednotkové podpory'!$A$26=TRUE,1,0)+IF('2) Stanovení jednotkové podpory'!$A$50=TRUE,1,0)+IF('2) Stanovení jednotkové podpory'!$A$65=TRUE,1,0)+IF('2) Stanovení jednotkové podpory'!$A$77=TRUE,1,0) -> 0 | B11: počet specifických cílů dotčených projektem
B12: Specifický cíl 1.2 (po zatržení je nutno vybrat jedno z opatření v rozbalovacím menu u této buňky vpravo)
B13: 1.2.1 Výstavba a rekonstrukce obnovitelných zdrojů energie pro veřejné budovy
B14: 1.2.2 Výstavba a rekonstrukce obnovitelných zdrojů energie pro zajištění dodávek systémové energie ve veřejném sektoru
F16: jednotkové náklady bez DPH | G16: k1 | I16: % podpory pro oblast A a C | L16: 40 | M16: % podpory pro oblast B | P16: 60 | R16: k2 | S16: k3 A1 | T16: k3 A2 | U16: k4
A17: Plocha zateplovaných obvodových stěn | F17: 4200 | G17: 1 | H17: 0.05 | I17: +0,05 – v případě certifikátu EPD pro tepelný izolant (environmentální prohlášení typu III) | R17: ='2) Stanovení jednotkové podpory'!C6 -> 1.1 | S17: 0.5 | T17: =S17+0.15 -> 0.65 | U17: 1.1
A18: Plocha měněných otvorových výplní (oken a dveří) | B18: ne LOP | F18: 8900 | G18: 1 | H18: 0.05 | I18: +0,05 – v případě certifikátu EPD pro tepelný izolant (environmentální prohlášení typu III) | R18: =$R$17 -> 1.1 | S18: 0.5 | T18: =S18+0.15 -> 0.65 | U18: =$U$17 -> 1.1
B19: LOP | F19: 8900 | G19: 1.3 | H19: 0.05 | I19: +0,05 – v případě certifikátu EPD pro tepelný izolant (environmentální prohlášení typu III) | R19: =$R$17 -> 1.1 | S19: 0.5 | T19: 0.65 | U19: =$U$17 -> 1.1
A20: Plocha zateplovaných plochých či šikmých střech | B20: nová skladba včetně paro a hydro izolace | F20: 3200 | G20: 1 | H20: 0.05 | I20: +0,05 – v případě certifikátu EPD pro tepelný izolant (environmentální prohlášení typu III) | R20: 1.1 | S20: 0.5 | T20: 0.65 | U20: 1.1
B21: pouze tepelná vrstva bez paro a hydroizolace | F21: 3200 | G21: 0.2 | H21: 0.05 | I21: +0,05 – v případě certifikátu EPD pro tepelný izolant (environmentální prohlášení typu III) | R21: 1.1 | S21: 0.5 | T21: 0.65 | U21: 1.1
A22: Plocha zateplovaných podlah na zemině | F22: 4000 | G22: 1 | H22: 0.05 | I22: +0,05 – v případě certifikátu EPD pro tepelný izolant (environmentální prohlášení typu III) | R22: 1.1 | S22: 0.5 | T22: 0.65 | U22: 1.1
A23: Plocha zateplovaných konstrukcí k nevytápěným prostorům | F23: 1200 | G23: 1 | H23: 0.05 | I23: +0,05 – v případě certifikátu EPD pro tepelný izolant (environmentální prohlášení typu III) | R23: 1.1 | S23: 0.5 | T23: 0.65 | U23: 1.1
A24: Celkový výkon nově instalovaných systémů nuceného větrání - výukové prostory vzdělávacích budov | B24: výkon na jednotku do 1500 m3 | F24: 9800 | G24: 0.6 | R24: 1.1 | S24: 0.7 | T24: =S24+0 -> 0.7 | U24: 1.1
B25: výkon na jednotku nad 1500 m3 | F25: 9800 | G25: 1 | R25: 1.1 | S25: 0.7 | T25: =S25+0 -> 0.7 | U25: 1.1
A26: Celkový výkon nově instalovaných systémů nuceného větrání s rekuperací - ostatní | B26: výkon na jednotku do 1500 m3 | F26: 390 | G26: 0.6 | R26: 1.1 | S26: 0.7 | T26: 0.7 | U26: 1.1
B27: výkon na jednotku nad 1500 m3 - regulace průtoku ON/OFF | F27: 390 | G27: 0.5 | R27: 1.1 | S27: 0.7 | T27: 0.7 | U27: 1.1
B28: výkon na jednotku nad 1500 m3 - regulace průtoku dle času, % výkonu jednotky a ostatní neuvedené | F28: 390 | G28: 0.7 | R28: 1.1 | S28: 0.7 | T28: 0.7 | U28: 1.1
B29: výkon na jednotku nad 1500 m3 - plynulá regulace, např. CO2 | F29: 390 | G29: 1 | R29: 1.1 | S29: 0.7 | T29: 0.7 | U29: 1.1
A30: Další opatření mající prokazatelně vliv na snížení spotřeby primární energie z neobnovitlrených zdrojů | B30: do 10 MWh/rok | F30: 36100 | G30: 1.1 | H30: – do 10 MWh/rok | R30: 1.1 | S30: 0.5 | T30: =S30+0.15 -> 0.65 | U30: 1.1
B31: nad 10 MWh/rok do 30 MWh/rok | F31: 36100 | G31: 0.9 | H31: – nad 10 do 30 MWh/rok | R31: 1.1 | S31: 0.5 | T31: =S31+0.15 -> 0.65 | U31: 1.1
B32: nad 30 MWh/rok do 100 MWh/rok | F32: 36100 | G32: 0.7 | H32: – nad 30 do 100 MWh/rok | R32: 1.1 | S32: 0.5 | T32: 0.65 | U32: 1.1
B33: nad 100 MWh/rok do 300 MWh/rok | F33: 36100 | G33: 0.5 | H33: – nad 100 do 300 MWh/rok | R33: 1.1 | S33: 0.5 | T33: 0.65 | U33: 1.1
B34: nad 300 MWh/rok | F34: 36100 | G34: 0.2 | H34: – nad 300 MWh/rok | R34: 1.1 | S34: 0.5 | T34: 0.65 | U34: 1.1
A36: Celkový výkon nově instalovaných kondenzačních kotlů na zemní plyn | F36: 8300 | G36: 1.4 | H36: – do 25 kW | R36: 1.1 | S36: =$S$17 -> 0.5 | T36: 0.65 | U36: 1.1
F37: 8300 | G37: 1.2 | H37: – nad 25 kW do 50 kW | R37: 1.1 | S37: 0.5 | T37: 0.65 | U37: 1.1
F38: 8300 | G38: 1.1 | H38: – nad 50 kW do 100 kW | R38: 1.1 | S38: 0.5 | T38: 0.65 | U38: 1.1
F39: 8300 | G39: 0.9 | H39: – nad 100 kW do 250 kW | R39: 1.1 | S39: 0.5 | T39: 0.65 | U39: 1.1
F40: 8300 | G40: 0.75 | H40: – nad 250 kW do 500 kW | R40: 1.1 | S40: 0.5 | T40: 0.65 | U40: 1.1
F41: 8300 | G41: 0.6 | H41: – nad 500 kW | R41: 1.1 | S41: 0.5 | T41: 0.65 | U41: 1.1
A42: Celkový výkon nově instalovaných tepelných čerpadel vzduch-voda | F42: 34600 | G42: 1.2 | H42: – do 50 kW | R42: 1.1 | S42: 0.6 | T42: 0.75 | U42: 1.1
F43: 34600 | G43: 1.1 | H43: – nad 50 kW do 100 kW | R43: 1.1 | S43: 0.6 | T43: 0.75 | U43: 1.1
F44: 34600 | G44: 0.9 | H44: – nad 100 kW do 250 kW | R44: 1.1 | S44: 0.6 | T44: 0.75 | U44: 1.1
F45: 34600 | G45: 0.8 | H45: – nad 250 kW | R45: 1.1 | S45: 0.6 | T45: 0.75 | U45: 1.1
A46: Celkový výkon nově instalovaných tepelných čerpadel země-voda a voda/voda | F46: 52900 | G46: 1.2 | H46: – do 50 kW | R46: 1.1 | S46: 0.6 | T46: 0.75 | U46: 1.1
F47: 52900 | G47: 1.1 | H47: – nad 50 kW do 100 kW | R47: 1.1 | S47: 0.6 | T47: 0.75 | U47: 1.1
F48: 52900 | G48: 0.9 | H48: – nad 100 kW do 250 kW | R48: 1.1 | S48: 0.6 | T48: 0.75 | U48: 1.1
F49: 52900 | G49: 0.8 | H49: – nad 250 kW | R49: 1.1 | S49: 0.6 | T49: 0.75 | U49: 1.1
A50: Celkový výkon nově instalovaných plynových tepelných čerpadel | F50: 28500 | G50: 1.2 | H50: – do 50 kW | R50: 1.1 | S50: 0.6 | T50: 0.75 | U50: 1.1
F51: 28500 | G51: 1.1 | H51: – nad 50 kW do 100 kW | R51: 1.1 | S51: 0.6 | T51: 0.75 | U51: 1.1
F52: 28500 | G52: 0.9 | H52: – nad 100 kW do 250 kW | R52: 1.1 | S52: 0.6 | T52: 0.75 | U52: 1.1
F53: 28500 | G53: 0.8 | H53: – nad 250 kW | R53: 1.1 | S53: 0.6 | T53: 0.75 | U53: 1.1
A54: Celkový výkon nově instalovaných zdrojů na biomasu | F54: 10800 | G54: 1.4 | H54: – do 25 kW | R54: 1.1 | S54: 0.6 | T54: 0.75 | U54: 1.1
F55: 10800 | G55: 1.2 | H55: – nad 25 kW do 50 kW | R55: 1.1 | S55: 0.6 | T55: 0.75 | U55: 1.1
F56: 10800 | G56: 1.1 | H56: – nad 50 kW do 100 kW | R56: 1.1 | S56: 0.6 | T56: 0.75 | U56: 1.1
F57: 10800 | G57: 0.9 | H57: – nad 100 kW do 250 kW | R57: 1.1 | S57: 0.6 | T57: 0.75 | U57: 1.1
F58: 10800 | G58: 0.75 | H58: – nad 250 kW do 500 kW | R58: 1.1 | S58: 0.6 | T58: 0.75 | U58: 1.1
F59: 10800 | G59: 0.6 | H59: – nad 500 kW | R59: 1.1 | S59: 0.6 | T59: 0.75 | U59: 1.1
A60: Celkový výkon nově instalovaných systémů využití odpadního tepla | F60: 31600 | G60: 1.4 | H60: – do 25 kW | R60: 1.1 | S60: 0.6 | T60: 0.75 | U60: 1.1
F61: 31600 | G61: 1.2 | H61: – nad 25 kW do 50 kW | R61: 1.1 | S61: 0.6 | T61: 0.75 | U61: 1.1
F62: 31600 | G62: 1.1 | H62: – nad 50 kW do 100 kW | R62: 1.1 | S62: 0.6 | T62: 0.75 | U62: 1.1
F63: 31600 | G63: 0.9 | H63: – nad 100 kW do 250 kW | R63: 1.1 | S63: 0.6 | T63: 0.75 | U63: 1.1
F64: 31600 | G64: 0.75 | H64: – nad 250 kW do 500 kW | R64: 1.1 | S64: 0.6 | T64: 0.75 | U64: 1.1
F65: 31600 | G65: 0.6 | H65: – nad 500 kW | R65: 1.1 | S65: 0.6 | T65: 0.75 | U65: 1.1
A66: Realizace nové otopné teplovodní soustavy | F66: 11500 | G66: 1 | R66: 1.1 | S66: 0.5 | T66: 0.65 | U66: 1.1
A67: Celkový výkon nově instalovaných solárně-termických kolektorů | F67: 36600 | G67: 1 | H67: – pro systém s plochými kolektory | R67: 1.1 | S67: 0.6 | T67: 0.75 | U67: 1.1
F68: 36600 | G68: 1.7 | H68: – pro systém s vakuovými kolektory | R68: 1.1 | S68: 0.6 | T68: 0.75 | U68: 1.1
A69: Celkový výkon nově instalovaných jednotek pro kombinovanou výrobu elektřiny a tepla nebo chladu | B69: s výkonem do 30 kWe | F69: 68100 | G69: 1.2 | R69: 1.1 | S69: 0.5 | T69: 0.65 | U69: 1.1
B70: s výkonem od 30 do 100 kWe | F70: 68100 | G70: 1 | R70: 1.1 | S70: 0.5 | T70: 0.65 | U70: 1.1
B71: s výkonem nad 100 kWe | F71: 68100 | G71: 0.7 | R71: 1.1 | S71: 0.5 | T71: 0.65 | U71: 1.1
A72: Celkový špičkový výkon nově instalovaných fotovoltaických systémů | F72: 35000 | G72: 1 | H72: – pro FVE s výkonem do 30 kWp | R72: 1.1 | S72: 0.6 | T72: 0.75 | U72: 1.1
F73: 35000 | G73: 0.85 | H73: – pro FVE s výkonem nad 30 do 100 kWp | R73: 1.1 | S73: 0.6 | T73: 0.75 | U73: 1.1
F74: 35000 | G74: 0.7 | H74: – pro FVE s výkonem nad 100 do 250 kWp | R74: 1.1 | S74: 0.6 | T74: 0.75 | U74: 1.1
F75: 35000 | G75: 0.6 | H75: – pro FVE s výkonem nad 250 kWp | R75: 1.1 | S75: 0.6 | T75: 0.75 | U75: 1.1
A76: Celková kapacita nově instalovaných bateriových systémů pro akumulaci energie z FVE systému | F76: 26000 | G76: 1 | H76: – s kapacitou do 30 kWh | R76: 1.1 | S76: 0.6 | T76: 0.75 | U76: 1.1
G77: 1 | H77: – s kapacitou nad 30 do 100 kWh | R77: 1.1 | S77: 0.6 | T77: 0.75 | U77: 1.1
G78: 1 | H78: – s kapacitou nad 100 kWh | R78: 1.1 | S78: 0.6 | T78: 0.75 | U78: 1.1
A79: Technické propojení FVE s tepelným čerpadlem pro TV | F79: 60000 | G79: 1 | R79: 1.1 | S79: 0.6 | T79: 0.75 | U79: 1.1
A80: Počet nově instalovaných dobíjecích stanic pro vozidla na elektropohon | F80: 45000 | G80: 1 | R80: 1.1 | S80: 0.7 | T80: =S80 -> 0.7 | U80: 1.1
A81: Počet realizovaných opatření k ochraně synantropních druhů | F81: 3000 | G81: 1 | R81: 1.1 | S81: 0.7 | T81: =S81 -> 0.7 | U81: 1.1
A86: B
A87: Kapacita akumulační nádrže instalovaného systému využití dešťové vody k závlaze | B87: systém bez technologické úpravy vody | F87: 8000 | G87: 1 | R87: =$R$17 -> 1.1 | S87: 0.4 | T87: =S87 -> 0.4 | U87: 1
B88: technologie na odbourávání na odbourávání organických nečistot (biologická filtrace) a hygienické zabezpečení na výstupu, určeno pro závlahu rozstřikem | F88: 25000 | G88: 1 | R88: 1.1 | S88: 0.65 | T88: 0.65 | U88: 1
A89: Kapacita akumulační nádrže instalovaného systému využití dešťové vody ke splachování toalet | F89: 40000 | G89: 1 | R89: 1.1 | S89: 0.65 | T89: 0.65 | U89: 1
A90: Kapacita retenčího zařízení instalovaného systému vsakování a výparu dešťové vody ze zpevněných ploch budovy | F90: 5000 | G90: 1 | R90: 1.1 | S90: 0.4 | T90: 0.4 | U90: 1
A91: Přečištění a využití lehké šedé vody z budovy (mimo ČOV) | B91: kapacita zařízení pro úpravu vody | F91: 150000 | G91: 1 | R91: 1.1 | S91: 0.65 | T91: 0.65 | U91: 1
B92: úspora pitné vody | F92: 2000 | G92: 1 | R92: 1.1 | S92: 0.65 | T92: 0.65 | U92: 1
A93: Vegetační střechy
A96: C
A97: Plocha výplní otvorů stíněných nově instalovanými vnějšími stínícími prvky orientovanými s odklonem větším než 25°od severu | B97: ruční mechanické ovládání | F97: 3700 | G97: 0.6 | H97: 0,6 - ruční mechanické ovládání | R97: 1.1 | S97: 0.4 | T97: =S97 -> 0.4 | U97: 1
B98: ruční elektronické ovládání | F98: 3700 | G98: 0.9 | H98: 0,9 - ruční elektronické ovládání | R98: 1.1 | S98: 0.5 | T98: =S98 -> 0.5 | U98: 1
B99: automatické ovládání na základě meteostanice s rozdělením orientace vůči světovým stranám | F99: 3700 | G99: 1 | H99: 1,0 - automatické ovládání na základě meteostanice s rozdělením orientace vůči světovým stranám | R99: 1.1 | S99: 0.65 | T99: 0.65 | U99: 1
A100: Podlahová plocha místností v nichž je modernizováno osvětlení na LED (výměna zdroje či svítidla / renovace svítidel a rozvodů / dynamické a biodynamické ovládání) | B100: Chodby, komunikace, sklady a prostory s nižší intenzitou osvětlení než 200 lux/m2 | C100: výměna zdrojů a svítidel za nová s LED technologií | F100: 2000 | G100: 0.2 | H100: 0,2 - výměna zdrojů a svítidel za nová s LED technologií | R100: 1.1 | S100: 0.4 | T100: 0.4 | U100: 1
C101: obnova systému osvětlení za LED technologie včetně realizace nových rozvodů a svítidel | F101: 2000 | G101: 0.4 | H101: 0,4 - obnova systému osvětlení za LED technologie včetně realizace nových rozvodů a svítidel | R101: 1.1 | S101: 0.5 | T101: 0.5 | U101: 1
C102: realizace dynamického či biodynamického osvětlení | F102: 2000 | G102: 0.6 | H102: 0,6 - realizace dynamického či biodynamického osvětlení | R102: 1.1 | S102: 0.65 | T102: 0.65 | U102: 1
B103: Ostatní prostory (s intenzitou osvětlení vyšší než 200 lux/m2) | C103: výměna zdrojů a svítidel za nová s LED technologií | F103: 2000 | G103: 0.3 | H103: 0,3 - výměna zdrojů a svítidel za nová s LED technologií | R103: 1.1 | S103: 0.4 | T103: 0.4 | U103: 1
C104: obnova systému osvětlení za LED technologie včetně realizace nových rozvodů a svítidel | F104: 2000 | G104: 0.7 | H104: 0,7 - obnova systému osvětlení za LED technologie včetně realizace nových rozvodů a svítidel | R104: 1.1 | S104: 0.5 | T104: 0.5 | U104: 1
C105: realizace dynamického či biodynamického osvětlení | F105: 2000 | G105: 1 | H105: 1,0 - realizace dynamického či biodynamického osvětlení | R105: 1.1 | S105: 0.65 | T105: 0.65 | U105: 1
A106: Podlahová plocha místností v nichž je řešena prostorová akustika (např. přednáškové sály, učebny, apod.) | F106: 1000 | G106: 1 | R106: 1.1 | S106: 0.5 | T106: 0.5 | U106: 1
A108: ANO
A109: NE
A112: Bonus za kombinaci opatření | B112: ´+ 2 % za A+1xB
B113: ´+ 4 % za A+2xB
B114: kombinace A+C?
A117: Celková podpora | B117: ´=A1 nebo A2 + B + C + bonus

Sheet 3) Výsledný rozpočet do ISKP21+
A1: Veřejná podpora
A3: Typ veřejné podpory
A4: 1
A6: Stanovení výše podpory pro veřejnou podporu dle GBER | I6: Stanovení výše podpory pro De minimis
A8: Bonifikace za umístění projektu | I8: Předchozí čerpání de minimis v €
A9: 2 | I9: Aktuální kurz € | M9: https://commission.europa.eu/funding-tenders/procedures-guidelines-tenders/information-contractors-and-beneficiaries/exchange-rate-inforeuro_cs
I10: Limit pro čerpání v Kč | L10: =IF(A4=2,(200000-L8)*L9,IF(A4=3,(500000-L8)*L9,"")) -> 
A11: Bonifikace za velikost podniku
A12: 3
E14: FALSE
A17: Porovnání celkové podpory projektu dle pravidel OPŽP 21+ a pravidel veřejné podpory
E19: Realizace | G19: PP+AD+TDI | I19: Celkem
A20: Dle pravidel výzvy | E20: =IF('1) Kumulativní rozpočet'!D16=0,0,MIN('1) Kumulativní rozpočet'!I20,'2) Stanovení jednotkové podpory'!D119)) -> 0 | G20: =IF('1) Kumulativní rozpočet'!D16=0,0,MIN(1,('2) Stanovení jednotkové podpory'!D119/MIN('2) Stanovení jednotkové podpory'!D117,'1) Kumulativní rozpočet'!I20)))*MIN((IF(MIN('2) Stanovení jednotkové podpory'!D117,'1) Kumulativní rozpočet'!I20)>10000000,0.035,IF(MIN('2) Stanovení jednotkové podpory'!D117,'1) Kumulativní rozpočet'!I20)>3000000,0.05,0.07))*MIN('2) Stanovení jednotkové podpory'!D117,'1) Kumulativní rozpočet'!I20)),15000000)) -> 0 | I20: =SUM(E20:G20) -> 0
A22: Dle pravidel veřejné podpory | E22: =IF('1) Kumulativní rozpočet'!D16=0,"",IF($A$4=1,"Irelevantní",IF(OR($A$4=2,$A$4=3),IF(I20>L10,IF(L10<E20,L10,E20),E20),'2) Stanovení jednotkové podpory'!D117*IF($A$4=5,IF(A9=1,IF(A12=3,'VP pomocné hodnoty'!D25,IF(A12=2,'VP pomocné hodnoty'!D26,'VP pomocné hodnoty'!D27)),IF(A9=2,IF(A12=3,'VP pomocné hodnoty'!E25,IF(A12=2,'VP pomocné hodnoty'!E26,'VP pomocné hodnoty'!E27)),IF(A12=3,'VP pomocné hodnoty'!F25,IF(A12=2,'VP pomocné hodnoty'!F26,'VP pomocné hodnoty'!F27)))),IF($A$4=6,IF(A9=1,IF(A12=3,'VP pomocné hodnoty'!D28,IF(A12=2,'VP pomocné hodnoty'!D29,'VP pomocné hodnoty'!D30)),IF(A9=2,IF(A12=3,'VP pomocné hodnoty'!E28,IF(A12=2,'VP pomocné hodnoty'!E29,'VP pomocné hodnoty'!E30)),IF(A12=3,'VP pomocné hodnoty'!F28,IF(A12=2,'VP pomocné hodnoty'!F29,'VP pomocné hodnoty'!F30)))),IF(A4=7,IF(A9=1,IF(A12=3,'VP pomocné hodnoty'!D31,IF(A12=2,'VP pomocné hodnoty'!D32,'VP pomocné hodnoty'!D33)),IF(A9=2,IF(A12=3,'VP pomocné hodnoty'!E31,IF(A12=2,'VP pomocné hodnoty'!E32,'VP pomocné hodnoty'!E33)),IF(A12=3,'VP pomocné hodnoty'!F31,IF(A12=2,'VP pomocné hodnoty'!F32,'VP pomocné hodnoty'!F33)))),1)))))) ->  | G22: =IF('1) Kumulativní rozpočet'!D16=0,"",IF($A$4=1,"Irelevantní",IF(AND(OR($A$4=2,$A$4=3),I20>L10),IF(E20<L10,(L10-E20),0),MIN('2) Stanovení jednotkové podpory'!D117,'1) Kumulativní rozpočet'!I20)*IF(MIN('2) Stanovení jednotkové podpory'!D117,'1) Kumulativní rozpočet'!I20)>10000000,0.035,IF(MIN('2) Stanovení jednotkové podpory'!D117,'1) Kumulativní rozpočet'!I20)>3000000,0.05,0.07))*IF($A$4=5,IF(A9=1,IF(A12=3,'VP pomocné hodnoty'!D25,IF(A12=2,'VP pomocné hodnoty'!D26,'VP pomocné hodnoty'!D27)),IF(A9=2,IF(A12=3,'VP pomocné hodnoty'!E25,IF(A12=2,'VP pomocné hodnoty'!E26,'VP pomocné hodnoty'!E27)),IF(A12=3,'VP pomocné hodnoty'!F25,IF(A12=2,'VP pomocné hodnoty'!F26,'VP pomocné hodnoty'!F27)))),IF($A$4=6,IF(A9=1,IF(A12=3,'VP pomocné hodnoty'!D28,IF(A12=2,'VP pomocné hodnoty'!D29,'VP pomocné hodnoty'!D30)),IF(A9=2,IF(A12=3,'VP pomocné hodnoty'!E28,IF(A12=2,'VP pomocné hodnoty'!E29,'VP pomocné hodnoty'!E30)),IF(A12=3,'VP pomocné hodnoty'!F28,IF(A12=2,'VP pomocné hodnoty'!F29,'VP pomocné hodnoty'!F30)))),IF(A4=7,IF(A9=1,IF(A12=3,'VP pomocné hodnoty'!D31,IF(A12=2,'VP pomocné hodnoty'!D32,'VP pomocné hodnoty'!D33)),IF(A9=2,IF(A12=3,'VP pomocné hodnoty'!E31,IF(A12=2,'VP pomocné hodnoty'!E32,'VP pomocné hodnoty'!E33)),IF(A12=3,'VP pomocné hodnoty'!F31,IF(A12=2,'VP pomocné hodnoty'!F32,'VP pomocné hodnoty'!F33)))),IF(OR($A$4=2,$A$4=3),A29,1))))))) ->  | I22: =IF('1) Kumulativní rozpočet'!D16=0,"",SUM(E22:G22)) -> 
A24: Výsledná celková podpora za projekt | E24: =MIN(E20,E22) -> 0 | G24: =MIN(G20,G22) -> 0 | I24: =SUM(E24:G24) -> 0
H26: =IF(ROUNDDOWN(A29,4)<A29,"Aktuální hodnota procenta podpory má více, než 2 desetinná místa. Do ISKP 21+ je možno zadat procento podpory s nejvýše dvěma desetinnými místy. Výsledná výše podpory po zaokrouhlení činí:","") -> 
A27: Výsledné procento podpory projektu do ISKP 21+
A29: =IF(OR(A4=5,A4=6,A4=7,A4=9,A4=10),$I$24/(MIN('1) Kumulativní rozpočet'!I20,'2) Stanovení jednotkové podpory'!$D$117)*(1+IF(MIN('2) Stanovení jednotkové podpory'!D117,'1) Kumulativní rozpočet'!I20)>10000000,0.035,IF(MIN('2) Stanovení jednotkové podpory'!D117,'1) Kumulativní rozpočet'!I20)>3000000,0.05,0.07)))),IF(OR(A4=2,A4=3),IF(I20>L10,1,IF(E24=0,0,E24/MIN('2) Stanovení jednotkové podpory'!D117,'1) Kumulativní rozpočet'!I20))),IF(E24=0,0,E24/MIN('2) Stanovení jednotkové podpory'!D117,'1) Kumulativní rozpočet'!I20)))) -> 0 | H29: =IF(ROUND($A$29,4)<>$A$29,ROUND($A$29,4)*$I$41,"") -> 
A31: Výsledný rozpočet do ISKP 21+
A33: Stanovení investiční části výdajů
A35: 1.1.1.1 Přímé náklady jednotkové - investiční do limitu paušálu a projekty bez motivačního účinku GBER
A36: 1.1.3.3 Přímé náklady jednotkové nebo doložené doklady - investiční nad limit paušálu a projekty s motivačním účinkem GBER
A37: 1.2.5 Celkové nezpůsobilé výdaje - investiční
I40: =I41+I49 -> 
I41: =I42+I45+I46 -> 0
I42: =IF(OR($A$4=1,$A$4=4,$A$4=8),MIN(MIN('2) Stanovení jednotkové podpory'!D117,'1) Kumulativní rozpočet'!I20),(15000000/0.035)),IF(OR($A$4=2,$A$4=3),IF(I24>=L10,0,(MIN('1) Kumulativní rozpočet'!I20,'2) Stanovení jednotkové podpory'!$D$117)*1)),0)) -> 0
I43: =IF(J35="","Nestanoveno",J35) -> Nestanoveno
I44: =I42-I43 -> 
I45: =IF(OR(A4=5,A4=6,A4=7,A4=9,A4=10),0,IF(OR(A4=2,A4=3),IF(I20<=L10,MIN(15000000,IF(MIN('2) Stanovení jednotkové podpory'!D117,'1) Kumulativní rozpočet'!I20)>10000000,MIN('2) Stanovení jednotkové podpory'!D117,'1) Kumulativní rozpočet'!I20)*0.035,IF(MIN('2) Stanovení jednotkové podpory'!D117,'1) Kumulativní rozpočet'!I20)>3000000,MIN('2) Stanovení jednotkové podpory'!D117,'1) Kumulativní rozpočet'!I20)*0.05,MIN('2) Stanovení jednotkové podpory'!D117,'1) Kumulativní rozpočet'!I20)*0.07))),0),MIN(15000000,IF(MIN('2) Stanovení jednotkové podpory'!D117,'1) Kumulativní rozpočet'!I20)>10000000,MIN('2) Stanovení jednotkové podpory'!D117,'1) Kumulativní rozpočet'!I20)*0.035,IF(MIN('2) Stanovení jednotkové podpory'!D117,'1) Kumulativní rozpočet'!I20)>3000000,MIN('2) Stanovení jednotkové podpory'!D117,'1) Kumulativní rozpočet'!I20)*0.05,MIN('2) Stanovení jednotkové podpory'!D117,'1) Kumulativní rozpočet'!I20)*0.07))))) -> 0
I46: =IF(OR(A4=5,A4=6,A4=7,A4=9,A4=10),MIN('1) Kumulativní rozpočet'!I20,'2) Stanovení jednotkové podpory'!$D$117)*(1+IF(MIN('2) Stanovení jednotkové podpory'!D117,'1) Kumulativní rozpočet'!I20)>10000000,0.035,IF(MIN('2) Stanovení jednotkové podpory'!D117,'1) Kumulativní rozpočet'!I20)>3000000,0.05,0.07))),IF(OR(A4=1,A4=4,A4=8),IF(E20>15000000/0.035,E20-15000000/0.035,0),IF(OR(AND(I20>L10,E20<L10),I20<L10),IF(G22<G20,I24-I42,0),IF(E20>L10,L10,0)))) -> 0
I47: =IF(J36="","Nestanoveno",J36) -> Nestanoveno
I48: =I46-I47 -> 
I49: ='1) Kumulativní rozpočet'!F20+IF('KR zdroj'!P26=2,'1) Kumulativní rozpočet'!$I$24*(1+('1) Kumulativní rozpočet'!$E$16/100)),'1) Kumulativní rozpočet'!I24)-I41 -> 
I50: =IF(J37="","Nestanoveno",J37) -> Nestanoveno
I51: =I49-I50 -> 
B52: Celkové jednotkové náklady nad limit paušálu | I52: =I43+I47 -> 
I53: =I44+I45+I48 -> 

Sheet VP pomocné hodnoty (hidden)
A1: 1 | B1: mimo rámec veřejné podpory
A2: 2 | B2: De minimis 1407/2013
A3: 3 | B3: De minimis 360/2012 (SOHZ)
A4: 4 | B4: Rozhodnutí SOHZ
A5: 5 | B5: GBER (článek 38) Investiční podpora na opatření ke zvýšení energetické účinnosti
A6: 6 | B6: GBER (článek 40) Investiční podpora na vysokoúčinnou kombinovanou výrobu tepla a elektrické energie
A7: 7 | B7: GBER (článek 41) Investiční podpora energie z obnovitelných zdrojů
A8: 8 | B8: GBER (článek 53) Podpora kultury a zachování kulturního dědictví
A9: 9 | B9: GBER (článek 55) Podpora na sportovní a multifunkční rekreační infrastrukturu
A10: 10 | B10: GBER (článek 56) Investiční podpora na místní infrastrukturu
A12: 1 | B12: Malý podnik
A13: 2 | B13: Střední podnik
A14: 3 | B14: Velký podnik a ostatní
A16: 1 | B16: Praha (bez bonifikace)
A17: 2 | B17: regiony dle čl. 107 odst. 3 písm. a) Smlouvy o fungování EU
A18: 3 | B18: regiony dle čl. 107 odst. 3 písm. c) Smlouvy o fungování EU
B20: Předpis/článek | D20: Max VP v Praze | E20: Max VP pro regiony dle čl. 107 odst. 3 písm. a) Smlouvy o fungování EU[1] | F20: Max VP pro regiony dle čl. 107 odst. 3 písm. c) Smlouvy o fungování EU [2] | G20: Notifikační práh
B21: De minimis 1407/2013 | D21: 1 | E21: 1 | F21: 1 | G21: n/r
B22: De minimis 360/2012 | D22: 1 | E22: 1 | F22: 1 | G22: n/r
B24: Rozhodnutí SOHZ[1] | D24: 1 | E24: 1 | F24: 1 | G24: n/r
B25: GBER 38 | C25: VP a O | D25: 0.3 | E25: 0.45 | F25: 0.35 | G25: 15 mil. EUR na podnik a projekt
C26: SP | D26: =D25+0.1 -> 0.4 | E26: =E25+0.1 -> 0.55 | F26: 0.45
C27: MP | D27: =D25+0.2 -> 0.5 | E27: =E25+0.2 -> 0.65 | F27: 0.55
B28: GBER 40 | C28: VP a O | D28: 0.45 | E28: 0.6 | F28: 0.5 | G28: 15 mil. EUR na podnik a projekt
C29: SP | D29: =D28+0.1 -> 0.55 | E29: =E28+0.1 -> 0.7 | F29: 0.6
C30: MP | D30: =D28+0.2 -> 0.65 | E30: =E28+0.2 -> 0.8 | F30: 0.7
B31: GBER 41 | C31: VP a O | D31: 0 | E31: 0.45 | F31: 0.45 | G31: 15 mil. EUR na podnik a projekt | H31: upraveno po změně limitů GBER
C32: SP | D32: 0 | E32: =E31+0.1 -> 0.55 | F32: 0.55 | H32: upraveno po změně limitů GBER
C33: MP | D33: 0 | E33: =E31+0.2 -> 0.65 | F33: 0.65 | H33: upraveno po změně limitů GBER
B34: GBER 41 – malá zařízení | C34: VP a O | D34: 0.3 | E34: 0.45 | F34: 0.35 | G34: 15 mil. EUR na podnik a projekt
C35: SP | D35: =D34+0.1 -> 0.4 | E35: =E34+0.1 -> 0.55 | F35: 0.45
C36: MP | D36: =D34+0.2 -> 0.5 | E36: =E34+0.2 -> 0.65 | F36: 0.55
B37: GBER 53 | D37: 1 | E37: 1 | F37: 1 | G37: 150 mil. EUR na projekt
B38: GBER 55 | D38: 1 | E38: 1 | F38: 1 | G38: 30 mil. EUR nebo CZV nepřesáhnou 100 mil. EUR
B39: GBER 56 | D39: 1 | E39: 1 | F39: 1 | G39: 10 mil. EUR nebo výdaje na projekt přesahující 20 mil. EUR
B42: [1] Pouze pro subjekty pověřené výkonem služby v obecném hospodářském zájmu.
